Workbook

Sheet EDM SO Annual Return
A1: EDM STORM OVERFLOW REGULATORY ANNUAL RETURN | U1: Complete columns U & V when data in column T is <90% | W1: Enter in columns W, X, Y when relevant spill frequency data (column Q + valid historic) is above the SOAF threshold (pg. 2 of SOAF)
A2: Water Company Name | B2: Site Name (EA Consents Database) | C2: Site Name (WaSC operational) [optional] | D2: EA Permit Reference (EA Consents Database) | E2: WaSC Supplementary Permit Ref. [optional] | F2: Activity Reference on Permit | G2: Storm Discharge Asset Type | H2: Outlet Discharge NGR (EA Consents Database) | I2: WFD Waterbody ID (Cycle 2) (discharge outlet) | J2: WFD Waterbody Catchment Name (Cycle 2) (discharge outlet) | K2: Receiving Water / Environment (common name) (EA Consents Database) | L2: Shellfish Water (only populate for storm overflow with a Shellfish Water EDM requirement) | M2: Bathing Water (only populate for storm overflow with a Bathing Water EDM requirement) | N2: Treatment Method (over & above Storm Tank settlement / screening) | O2: Initial EDM Commission Date | P2: Total Duration (hrs) all spills prior to processing through 12-24h count method | Q2: Counted spills using 12-24h count method | R2: Long-term average spill count | S2: No. full years EDM data (years) | T2: EDM Operation - % of reporting period EDM operational | U2: EDM Operation - Reporting % - Primary Reason <90% | V2: EDM Operation - Action taken / planned - Status & timeframe | W2: High Spill Frequency - Operational Review - Primary Reason | X2: High Spill Frequency - Action taken / planned - Status & timeframe | Y2: High Spill Frequency - Environmental Enhancement - Planning Position (Hydraulic capacity) | Z2: Unique ID
A3: Dwr Cymru Welsh Water | B3: 3 ELMS ROAD COMBINED SEWER OVERFLOW | D3: AN0078801 | E3: AN0078801 | F3: 1 | G3: SO on sewer network | H3: SO4948140832 | I3: GB109055037040 | J3: Yazor Bk - source to conf R Wye | K3: YAZOR BROOK | N3: Not Applicable | O3: Commissioned in 2017 - full year data expected | P3: 2.5 | Q3: 8 | R3: 11.83333333 | S3: 6 (installed 2017) | T3: 0.9995
A4: Dwr Cymru Welsh Water | B4: PUMPING STATION AT MOCCAS STW | D4: AN0379901 | E4: AN0379901 | F4: 1 | G4: Storm discharge at pumping station | H4: SO3547842211 | I4: GB109055037000 | J4: Preston Bk - source to conf R Wye | K4: TRIBUTARY OF RIVER WYE | N4: Not Applicable | O4: Commissioned in 2016 - full year data expected | P4: 397.75 | Q4: 32 | R4: 20.42857143 | S4: 7 (installed 2016) | T4: 0.9997
A5: Dwr Cymru Welsh Water | B5: ALDFORD SEWAGE TREATMENT WORKS | D5: CM0115201 | E5: CM0115201 | F5: A2 | G5: Inlet SO at WwTW | H5: SJ4215659533 | I5: GB111067052120 | J5: Aldford Brook | K5: ALDFORD BROOK | N5: Not Applicable | O5: Commissioned in 2017 - full year data expected | P5: 721 | Q5: 99 | R5: 110.1666667 | S5: 6 (installed 2017) | T5: 0.9999 | W5: N/A - Ongoing investigation | X5: N/A - Ongoing investigation
A6: Dwr Cymru Welsh Water | B6: BACHE TANKS CSO | D6: CG0359901 | E6: CG0359901 | G6: SO on sewer network | H6: SJ4028868076 | I6: GB111067056930 | J6: Finchetts Gutter | K6: BACHE BROOK | N6: Not Applicable | O6: Commissioned in 2017 - full year data expected | P6: 43.25 | Q6: 18 | R6: 17.66666667 | S6: 6 (installed 2017) | T6: 0.9309
A7: Dwr Cymru Welsh Water | B7: CHESTER BELGRAVE PARK SPS | D7: CG0360901 | E7: CG0360901 | F7: 1 | G7: Storm discharge at pumping station | H7: SJ4127664828 | I7: 166 | K7: RIVER DEE | N7: Not Applicable | O7: Commissioned in 2017 - full year data expected | P7: 1.5 | Q7: 2 | R7: 0.3333333333 | S7: 6 (installed 2017) | T7: 0.9991
A8: Dwr Cymru Welsh Water | B8: BOATHOUSE INN CSO | D8: NPSWQD005835 | E8: WQD005835 | G8: SO on sewer network | H8: SJ4115666091 | I8: 166 | K8: RIVER DEE | N8: Not Applicable | O8: Commissioned in 2017 - full year data expected | P8: 51.25 | Q8: 29 | R8: 22.66666667 | S8: 6 (installed 2017) | T8: 0.9997
A9: Dwr Cymru Welsh Water | B9: BRAMPTON STREET CSO | D9: AN0014601 | E9: AN0014601 | G9: SO on sewer network | H9: SO6012124462 | I9: GB109055029730 | J9: Rudhall Bk - source to conf R Wye | K9: RUDHALL BROOK | N9: Not Applicable | O9: Commissioned in 2018 - full year data expected | P9: 26.75 | Q9: 40 | R9: 53 | S9: 5 (installed 2018) | T9: 0.9892 | W9: N/A - Ongoing investigation | X9: N/A - Ongoing investigation
A10: Dwr Cymru Welsh Water | B10: JUNCTION OF CRUXWELL ST & ROWBERRY | D10: AN0122001 | E10: AN0122001 | G10: SO on sewer network | H10: SO6558355196 | I10: GB109055041850 | J10: Frome - source to conf Tedstone Bk | K10: RIVER FROME | N10: Not Applicable | O10: Commissioned in 2019 - full year data expected | P10: 0 | Q10: 0 | R10: 70.66666667 | S10: 4 (installed 2019) | T10: 1 | W10: N/A - Ongoing investigation | X10: N/A - Ongoing investigation
A11: Dwr Cymru Welsh Water | B11: PORTHOUSE FARM INDUSTRIAL SITE PS | D11: AN0069901 | E11: AN0069901 | G11: Storm discharge at pumping station | H11: SO6557755195 | I11: GB109055041850 | J11: Frome - source to conf Tedstone Bk | K11: RIVER FROME | N11: Not Applicable | O11: Commissioned in 2017 - full year data expected | P11: 48.75 | Q11: 14 | R11: 16.66666667 | S11: 6 (installed 2017) | T11: 0.9914
A12: Dwr Cymru Welsh Water | B12: CSO AT BROMYARD WWTW | D12: AL1000602 | E12: AL1000602 | G12: Inlet SO at WwTW | H12: SO6583054450 | I12: GB109055036780 | J12: Frome - conf Tedstone Bk to conf R Lugg | K12: RIVER FROME | N12: Not Applicable | O12: Commissioned in 2017 - full year data expected | P12: 10.5 | Q12: 22 | R12: 30.66666667 | S12: 6 (installed 2017) | T12: 0.9997
A13: Dwr Cymru Welsh Water | B13: CANNOP ROAD SEWAGE PUMPING STATION | D13: NPSWQD010007 | E13: WQD010007 | F13: 1 | G13: Storm discharge at pumping station | H13: SO5934011362 | I13: GB109054032640 | J13: Cannop Bk - source to R Severn Estuary | K13: CANNOP BROOK | N13: Not Applicable | O13: Commissioned in 2017 - full year data expected | P13: 0.75 | Q13: 2 | R13: 8.75 | S13: 6 (installed 2017) | T13: 0.9985
A14: Dwr Cymru Welsh Water | B14: CAWDOR ARCH COMBINED SEWER OVERFLOW | D14: AN0014501 | E14: AN0014501 | G14: SO on sewer network | H14: SO5965224489 | I14: GB109055029730 | J14: Rudhall Bk - source to conf R Wye | K14: RUDHALL BROOK | N14: Not Applicable | O14: Commissioned in 2016 - full year data expected | P14: 13.75 | Q14: 23 | R14: 20.83333333 | S14: 7 (installed 2016) | T14: 0.5691 | U14: Comms failure / issue | V14: N/A - Ongoing investigation
A15: Dwr Cymru Welsh Water | B15: CRANE STREET CSO | D15: CM0167501 | E15: CM0167501 | G15: SO on sewer network | H15: SJ3980966444 | I15: 166 | K15: RIVER DEE | N15: Not Applicable | O15: Commissioned in 2017 - full year data expected | P15: 84.5 | Q15: 41 | R15: 25.4 | S15: 6 (installed 2017) | T15: 0.563 | U15: Comms failure / issue | V15: N/A - Ongoing investigation
A16: Dwr Cymru Welsh Water | B16: CHESTER PARKGATE COURT SPS | D16: CM0191201 | E16: CM0191201 | F16: 1 | G16: Storm discharge at pumping station | H16: SJ3994967898 | I16: GB111067056930 | J16: Finchetts Gutter | K16: BACHE BROOK | N16: Not Applicable | O16: Commissioned in 2017 - full year data expected | P16: 9.75 | Q16: 6 | R16: 4.666666667 | S16: 6 (installed 2017) | T16: 0.9997
A17: Dwr Cymru Welsh Water | B17: CHESTER WASTEWATER TREATMENT WORKS | D17: CM0017801 | E17: CM0017801 | F17: A2 | G17: Storm tank at WwTW | H17: SJ 39523 66604 | I17: 166 | K17: RIVER DEE | N17: Not Applicable | O17: Commissioned in 2018 - full year data expected | P17: 354.75 | Q17: 67 | R17: 62.4 | S17: 5 (installed 2018) | T17: 0.9995
A18: Dwr Cymru Welsh Water | B18: CHESTER TROOPER INN CSO | D18: CM0184601 | E18: CM0184601 | G18: SO on sewer network | H18: SJ4356365617 | I18: GB111067056930 | J18: Finchetts Gutter | K18: TRIB OF BACHE BROOK | N18: Not Applicable | O18: Commissioned in 2017 - full year data expected | P18: 87.5 | Q18: 30 | R18: 33.33333333 | S18: 6 (installed 2017) | T18: 0.9996
A19: Dwr Cymru Welsh Water | B19: CHESTER WEIR (SOUTH BANK) CSO | D19: CM0125201 | E19: CM0125201 | G19: SO on sewer network | H19: SJ4074465724 | I19: 166 | K19: RIVER DEE | N19: Not Applicable | O19: Commissioned in 2017 - full year data expected | P19: 126.25 | Q19: 58 | R19: 27.83333333 | S19: 6 (installed 2017) | T19: 0.941
A20: Dwr Cymru Welsh Water | B20: CSO AT CHESTER STW | D20: NPSWQD005869 | E20: WQD005869 | G20: Inlet SO at WwTW | H20: SJ3952466604 | I20: 166 | K20: RIVER DEE | N20: Not Applicable | O20: Commissioned in 2018 - full year data expected | P20: 93.5 | Q20: 55 | R20: 42.6 | S20: 5 (installed 2018) | T20: 0.9995
A21: Dwr Cymru Welsh Water | B21: CHRISTLETON WHITCHURCH ROAD PS | D21: CM0185501 | E21: CM0185501 | F21: 1 | G21: Storm discharge at pumping station | H21: SJ4418065009 | I21: GB111067056930 | J21: Finchetts Gutter | K21: CALDY BROOK | N21: Not Applicable | O21: Commissioned in 2019 - full year data expected | P21: 15.75 | Q21: 9 | R21: 13.5 | S21: 4 (installed 2019) | T21: 0.9995
A22: Dwr Cymru Welsh Water | B22: CONGREGATIONAL CHAPEL CSO | D22: AN0069801 | E22: AN0069801 | G22: SO on sewer network | H22: SO6579054590 | I22: GB109055036780 | J22: Frome - conf Tedstone Bk to conf R Lugg | K22: RIVER FROME | N22: Not Applicable | O22: Commissioned in 2016 - full year data expected | P22: 82.75 | Q22: 61 | R22: 62.71428571 | S22: 7 (installed 2016) | T22: 0.9996 | W22: Not asset maintenance - Hydraulic capacity | X22: N/A - Hydraulic capacity | Y22: U_IMP4 driver - Stage 4: Spill reduction scheme - On current WINEP/AMP or Green Recovery
A23: Dwr Cymru Welsh Water | B23: EIGN 1B COMBINED SEWER OVERFLOW | D23: AN0315201 | E23: AN0315201 | G23: Inlet SO at WwTW | H23: SO5213038850 | I23: GB109055037113 | J23: Wye - Bredwardine Br to Hampton Bishop | K23: RIVER WYE | N23: Not Applicable | O23: Commissioned in 2016 - full year data expected | P23: 15 | Q23: 9 | R23: 10.85714286 | S23: 7 (installed 2016) | T23: 0.9998
A24: Dwr Cymru Welsh Water | B24: BARTON ROAD COMBINED SEWER OVERFLOW | D24: AN0266401 | E24: AN0266401 | G24: SO on sewer network | H24: SO5047439713 | I24: GB109055037113 | J24: Wye - Bredwardine Br to Hampton Bishop | K24: YAZOR BROOK (CULVERTED) | N24: Not Applicable | O24: Commissioned in 2018 - full year data expected | P24: 62.25 | Q24: 26 | R24: 10.8 | S24: 5 (installed 2018) | T24: 0.9352
A25: Dwr Cymru Welsh Water | B25: CSO AT TATTENHALL STW | D25: CM0105502 | E25: CM0105502 | G25: Inlet SO at WwTW | H25: SJ4789059190 | I25: GB111067052120 | J25: Aldford Brook | K25: GOLBOURNE BROOK | N25: Not Applicable | O25: Commissioned in 2018 - full year data expected | P25: 551.25 | Q25: 91 | R25: 80.4 | S25: 5 (installed 2018) | T25: 0.9971 | W25: N/A - Ongoing investigation | X25: N/A - Ongoing investigation
A26: Dwr Cymru Welsh Water | B26: DALESIDE COMBINED SEWER OVERFLOW | D26: CG0405401 | E26: CG0405401 | G26: SO on sewer network | H26: SJ4058969734 | I26: GB111067056930 | J26: Finchetts Gutter | K26: TRIBUTARY OF FINCHETT'S GUTTER | N26: Not Applicable | O26: Commissioned in 2017 - full year data expected | P26: 0.5 | Q26: 2 | R26: 0.3333333333 | S26: 6 (installed 2017) | T26: 0.9536
A27: Dwr Cymru Welsh Water | B27: DEE LANE CSO | D27: CM0124801 | E27: CM0124801 | G27: SO on sewer network | H27: SJ4133766245 | I27: GB111067056930 | J27: Finchetts Gutter | K27: RIVER DEE | N27: Not Applicable | O27: Commissioned in 2017 - full year data expected | P27: 373 | Q27: 100 | R27: 87.66666667 | S27: 6 (installed 2017) | T27: 0.9998 | W27: N/A - Ongoing investigation | X27: N/A - Ongoing investigation
A28: Dwr Cymru Welsh Water | B28: DEVA TERRACE CSO | D28: CM0124701 | E28: CM0124701 | G28: SO on sewer network | H28: SJ4140066300 | I28: GB111067056930 | J28: Finchetts Gutter | K28: RIVER DEE | N28: Not Applicable | O28: Commissioned in 2018 - full year data expected | P28: 100 | Q28: 81 | R28: 62.2 | S28: 5 (installed 2018) | T28: 0.9873 | W28: N/A - Ongoing investigation | X28: N/A - Ongoing investigation
A29: Dwr Cymru Welsh Water | B29: SPS AT EARDISLEY STW | D29: AL1001102 | E29: AL1001102 | F29: A1 | G29: Storm discharge at pumping station | H29: SO3119248566 | I29: GB109055037070 | J29: Willersley Bk - source to conf R Wye | K29: TRIBUTARY OF RIVER WYE | N29: Not Applicable | O29: Commissioned in 2017 - full year data expected | P29: 1237.5 | Q29: 78 | R29: 65 | S29: 6 (installed 2017) | T29: 0.9144 | W29: Performance - Infiltration | X29: Scheduled | Y29: Stage 1b: Confirmed "asset maintenance" issue
A30: Dwr Cymru Welsh Water | B30: ECCLESTON PUMPING STATION | D30: CM0185001 | E30: CM0185001 | F30: 1 | G30: Storm discharge at pumping station | H30: SJ4159062685 | I30: GB111067052140 | J30: Henlake Brook | K30: DEE | N30: Not Applicable | O30: Commissioned in 2017 - full year data expected | P30: 44 | Q30: 8 | R30: 6.5 | S30: 6 (installed 2017) | T30: 0.9985
A31: Dwr Cymru Welsh Water | B31: EDGAR PARK CSO | D31: CM0167601 | E31: CM0167601 | G31: SO on sewer network | H31: SJ4073565711 | I31: 166 | K31: RIVER DEE | N31: Not Applicable | O31: Commissioned in 2017 - full year data expected | P31: 9.25 | Q31: 9 | R31: 8 | S31: 6 (installed 2017) | T31: 0.5848 | U31: Comms failure / issue | V31: N/A - Ongoing investigation
A32: Dwr Cymru Welsh Water | B32: EIGN WASTEWATER TREATMENT WORKS | D32: AH1001101 | E32: AH1001101 | F32: 2 | G32: Storm tank at WwTW | H32: SO5221438795 | I32: GB109055037113 | J32: Wye - Bredwardine Br to Hampton Bishop | K32: RIVER WYE | N32: Not Applicable | O32: Commissioned in 2019 - full year data expected | R32: 56 | S32: 4 (installed 2019) | T32: 0 | U32: Installation set-up/design issue | V32: N/A - Ongoing investigation | W32: N/A - Ongoing investigation | X32: N/A - Ongoing investigation
A33: Dwr Cymru Welsh Water | B33: FOWNHOPE SEWAGE TREATMENT WORKS | D33: AN0390901 | E33: AN0390901 | G33: Inlet SO at WwTW | H33: SO5756534007 | I33: GB109055037112 | J33: Wye - Hampton Bishop to conf Kerne Br | K33: RIVER WYE | N33: Not Applicable | O33: Commissioned in 2016 - full year data expected | P33: 25.5 | Q33: 8 | R33: 1.285714286 | S33: 7 (installed 2016) | T33: 0.9856
A34: Dwr Cymru Welsh Water | B34: GAYTON CEDARWAY PUMPING STATION | D34: CM0193801 | E34: CM0193801 | F34: 1 | G34: Storm discharge at pumping station | H34: SJ2777080260 | I34: 166 | K34: UNNAMED DITCH TO RIVER DEE | N34: Not Applicable | O34: Commissioned pre-2016 - full year data expected | P34: 0.5 | Q34: 2 | R34: 3.625 | S34: 8 (installed 2015) | T34: 0.5689 | U34: Comms failure / issue | V34: N/A - Ongoing investigation
A35: Dwr Cymru Welsh Water | B35: GAYTON PARKWAY CSO | D35: CM0197201 | E35: CM0197201 | G35: SO on sewer network | H35: SJ2826080436 | I35: 166 | K35: TRIB OF RIVER DEE | N35: Not Applicable | O35: Commissioned pre-2016 - full year data expected | P35: 3.25 | Q35: 5 | R35: 5.125 | S35: 8 (installed 2015) | T35: 0.9998
A36: Dwr Cymru Welsh Water | B36: GLADSTONE ROAD CSO | D36: CG0359801 | E36: CG0359801 | G36: SO on sewer network | H36: SJ2940777342 | I36: 166 | K36: UNNAMED WATERCOURSE | N36: Not Applicable | O36: Commissioned pre-2016 - full year data expected | P36: 19.75 | Q36: 9 | R36: 6.875 | S36: 8 (installed 2015) | T36: 0.9998
A37: Dwr Cymru Welsh Water | B37: GRANDSTAND ROAD CSO | D37: AN0077701 | E37: AN0077701 | G37: SO on sewer network | H37: SO4936341329 | I37: GB109055037040 | J37: Yazor Bk - source to conf R Wye | K37: YAZOR BROOK | N37: Not Applicable | O37: Commissioned in 2017 - full year data expected | P37: 3 | Q37: 9 | R37: 39.5 | S37: 6 (installed 2017) | T37: 0.996
A38: Dwr Cymru Welsh Water | B38: GREAT HOUGH BROOK CSO | D38: AN0014901 | E38: AN0014901 | G38: SO on sewer network | H38: SO5955316818 | I38: GB109055037111 | J38: Wye - conf Walford Bk to Bigsweir Br | K38: A TRIB OF THE RIVER WYE | N38: Not Applicable | O38: Commissioned in 2016 - full year data expected | P38: 27.25 | Q38: 20 | R38: 23 | S38: 7 (installed 2016) | T38: 0.9995
A39: Dwr Cymru Welsh Water | B39: GREENFIELDS DRIVE CSO | D39: CM0170201 | E39: CM0170201 | G39: SO on sewer network | H39: SJ2905575755 | I39: GB531206908100 | J39: MERSEY | K39: DEE ESTUARY | N39: Not Applicable | O39: Commissioned pre-2016 - full year data expected | P39: 7 | Q39: 21 | R39: 12 | S39: 8 (installed 2015) | T39: 0.9999
A40: Dwr Cymru Welsh Water | B40: HANDBRIDGE GREENBANK SPS | D40: CM0185601 | E40: CM0185601 | F40: A1 | G40: Storm discharge at pumping station | H40: SJ4117064610 | I40: 166 | K40: RIVER DEE | N40: Not Applicable | O40: Commissioned in 2017 - full year data expected | P40: 0 | Q40: 0 | R40: 0 | S40: 6 (installed 2017) | T40: 0.9995
A41: Dwr Cymru Welsh Water | B41: HARP INN CSO | D41: CM0170301 | E41: CM0170301 | G41: SO on sewer network | H41: SJ2892875942 | I41: GB531206908100 | J41: MERSEY | K41: DEE ESTUARY | N41: Not Applicable | O41: Commissioned pre-2016 - full year data expected | P41: 84 | Q41: 57 | R41: 34.125 | S41: 8 (installed 2015) | T41: 0.9998
A42: Dwr Cymru Welsh Water | B42: BELMONT ROUNDABOUT CSO | D42: AN0078601 | E42: AN0078601 | G42: SO on sewer network | H42: SO5072239508 | I42: GB109055037113 | J42: Wye - Bredwardine Br to Hampton Bishop | K42: RIVER WYE | N42: Not Applicable | O42: Commissioned in 2016 - full year data expected | P42: 119 | Q42: 39 | R42: 18.28571429 | S42: 7 (installed 2016) | T42: 0.803 | U42: Comms failure / issue | V42: N/A - Ongoing investigation
A43: Dwr Cymru Welsh Water | B43: GREYFRIARS BRIDGE CSO | D43: AN0077101 | E43: AN0077101 | G43: SO on sewer network | H43: SO5073039570 | I43: GB109055037113 | J43: Wye - Bredwardine Br to Hampton Bishop | K43: RIVER WYE | N43: Not Applicable | O43: Commissioned in 2017 - full year data expected | R43: 64.2 | S43: 6 (installed 2017) | T43: 0 | U43: Installation set-up/design issue | V43: Scheduled | W43: Data collection - EDM non-representative location | X43: Scheduled | Y43: Stage 1b: Confirmed "asset maintenance" issue
A44: Dwr Cymru Welsh Water | B44: SEATON AVENUE CSO | D44: AN0078101 | E44: AN0078101 | G44: SO on sewer network | H44: SO5344740624 | I44: GB109055036790 | J44: Lugg - conf R Arrow to conf R Wye | K44: LUGG RHEAY | N44: Not Applicable | O44: Commissioned in 2016 - full year data expected | P44: 0 | Q44: 0 | R44: 1.285714286 | S44: 7 (installed 2016) | T44: 0.159 | U44: Comms failure / issue | V44: N/A - Ongoing investigation
A45: Dwr Cymru Welsh Water | B45: THREE ELMS ROAD CSO | D45: AN0078901 | E45: AN0078901 | G45: SO on sewer network | H45: SO4920040900 | I45: GB109055037040 | J45: Yazor Bk - source to conf R Wye | K45: YAZOR BROOK | N45: Not Applicable | O45: Commissioned in 2019 - full year data expected | P45: 7.25 | Q45: 13 | R45: 12 | S45: 4 (installed 2019) | T45: 1
A46: Dwr Cymru Welsh Water | B46: HESWALL SEABANK ROAD | D46: CM0173801 | E46: CM0173801 | G46: SO on sewer network | H46: SJ2620080700 | I46: GB531206908100 | J46: MERSEY | K46: PIPE TO RIVER DEE | N46: Not Applicable | O46: Commissioned pre-2016 - full year data expected | R46: 64.33333333 | S46: 8 (installed 2015) | T46: 0 | U46: Comms failure / issue | V46: N/A - Ongoing investigation | W46: Not asset maintenance - Hydraulic capacity | X46: N/A - Hydraulic capacity | Y46: U_IMP4 driver - Stage 4: Potential spill reduction scheme - Not yet on current WINEP/AMP or Green Recovery
A47: Dwr Cymru Welsh Water | B47: HESWALL STORAGE TANK CSO HESWALL | D47: CG0355101 | E47: CG0355101 | G47: SO on sewer network | H47: SJ2619080420 | I47: GB531206908100 | J47: MERSEY | K47: RIVER DEE ESTUARY | N47: Not Applicable | O47: Commissioned pre-2016 - full year data expected | P47: 38.25 | Q47: 13 | R47: 12.85714286 | S47: 8 (installed 2015) | T47: 1
A48: Dwr Cymru Welsh Water | B48: HESWALL WASTEWATER TREATMENT WORKS | D48: CG0362601 | E48: CG0362601 | G48: Storm tank at WwTW | H48: SJ2497081795 | I48: GB641211630001 | J48: Mersey Mouth | K48: DEE ESTUARY | N48: Not Applicable | O48: Commissioned pre-2016 - full year data expected | P48: 525.75 | Q48: 46 | R48: 17.625 | S48: 8 (installed 2015) | T48: 0.9966
A49: Dwr Cymru Welsh Water | B49: COTTAGE LANE PUMPING STATION | D49: CM0193701 | E49: CM0193701 | F49: 1 | G49: Storm discharge at pumping station | H49: SJ2650080000 | I49: 166 | K49: THE DEE | N49: Not Applicable | O49: Commissioned pre-2016 - full year data expected | P49: 22.75 | Q49: 6 | R49: 2.375 | S49: 8 (installed 2015) | T49: 0.9996
A50: Dwr Cymru Welsh Water | B50: HOMS ROAD PUMPING STATION CSO | D50: AN0014401 | E50: AN0014401 | G50: Storm discharge at pumping station | H50: SO5964024400 | I50: GB109055037112 | J50: Wye - Hampton Bishop to conf Kerne Br | K50: RIVER WYE | N50: Not Applicable | O50: Commissioned in 2019 - full year data expected | P50: 148.75 | Q50: 29 | R50: 44.5 | S50: 4 (installed 2019) | T50: 0.9995 | W50: N/A - Ongoing investigation | X50: N/A - Ongoing investigation
A51: Dwr Cymru Welsh Water | B51: THE RAKE AND PIKLE PUMPING STATION | D51: CM0184901 | E51: CM0184901 | F51: 1 | G51: Storm discharge at pumping station | H51: SJ4249864260 | I51: GB111067052140 | J51: Henlake Brook | K51: CALDY BROOK | N51: Not Applicable | O51: Commissioned in 2018 - full year data expected | P51: 7.25 | Q51: 2 | R51: 2.6 | S51: 5 (installed 2018) | T51: 0.9995
A52: Dwr Cymru Welsh Water | B52: JOYFORD MILL PUMPING STATION | D52: AN0070101 | E52: AN0070101 | F52: 1 | G52: Storm discharge at pumping station | H52: SO5812013720 | I52: GB109055037111 | J52: Wye - conf Walford Bk to Bigsweir Br | K52: TRIB OF THE RIVER WYE | N52: Not Applicable | O52: Commissioned in 2016 - full year data expected | R52: 11.66666667 | S52: 7 (installed 2016) | T52: 0 | U52: Comms failure / issue | V52: N/A - Ongoing investigation
A53: Dwr Cymru Welsh Water | B53: MANHOLE 27 COMBINED SEWER OVERFLOW | D53: AN0125601 | E53: AN0125601 | G53: SO on sewer network | H53: SO3003556578 | I53: GB109055036620 | J53: Arrow - conf Gladestry Bk to conf Gilwern Bk | K53: RIVER ARROW | N53: Not Applicable | O53: Commissioned in 2016 - full year data expected | P53: 99.5 | Q53: 26 | R53: 21.28571429 | S53: 7 (installed 2016) | T53: 0.9995
A54: Dwr Cymru Welsh Water | B54: KINGTON - MANHOLE 29 | D54: AN0125701 | E54: AN0125701 | G54: SO on sewer network | H54: SO3010056500 | I54: GB109055036620 | J54: Arrow - conf Gladestry Bk to conf Gilwern Bk | K54: RIVER ARROW | N54: Not Applicable | O54: Commissioned in 2017 - full year data expected | P54: 156.5 | Q54: 60 | R54: 38.33333333 | S54: 6 (installed 2017) | T54: 0.965
A55: Dwr Cymru Welsh Water | B55: MANHOLE 50 COMBINED SEWER OVERFLOW | D55: AN0125801 | E55: AN0125801 | G55: SO on sewer network | H55: SO2993856480 | I55: GB109055036620 | J55: Arrow - conf Gladestry Bk to conf Gilwern Bk | K55: RIVER ARROW | N55: Not Applicable | O55: Commissioned in 2017 - full year data expected | R55: 4.6 | S55: 6 (installed 2017) | T55: 0 | U55: Comms failure / issue | V55: N/A - Ongoing investigation
A56: Dwr Cymru Welsh Water | B56: #TBC | C56: Kington CSO - Access Road to STW | E56: Unpermitted-72664 | G56: SO on sewer network | H56: SO3064056910 | I56: GB109055036620 | J56: Arrow - conf Gladestry Bk to conf Gilwern Bk | K56: RIVER ARROW | N56: Not Applicable | O56: Commissioned in 2019 - full year data expected | P56: 75.25 | Q56: 66 | R56: 64.25 | S56: 4 (installed 2019) | T56: 0.9918 | W56: N/A - Ongoing investigation | X56: N/A - Ongoing investigation
A57: Dwr Cymru Welsh Water | B57: KINGTON WASTEWATER TREATMENT WORKS | D57: AL1001501 | E57: AL1001501 | F57: A2 | G57: Storm tank at WwTW | H57: SO 30175 57085 | I57: GB109055041840 | J57: Arrow - conf Gilwern Bk to conf R Lugg | K57: RIVER ARROW | N57: Not Applicable | O57: Commissioned in 2019 - full year data expected | P57: 56.5 | Q57: 35 | R57: 29.5 | S57: 4 (installed 2019) | T57: 0.9999
A58: Dwr Cymru Welsh Water | B58: LEOMINSTER WASTEWATER TREATMENT WKS | D58: AN0228301 | E58: AN0228301 | F58: A2 | G58: Storm tank at WwTW | H58: SO 50738 58450 | I58: GB109055042030 | J58: Lugg - conf Norton Bk to conf R Arrow | K58: RIVER LUGG | N58: Not Applicable | O58: Commissioned in 2018 - full year data expected | P58: 344 | Q58: 68 | R58: 63.6 | S58: 5 (installed 2018) | T58: 1 | W58: N/A - Ongoing investigation | X58: N/A - Ongoing investigation
A59: Dwr Cymru Welsh Water | B59: LITTLE ROODEE CSO | D59: CM0167101 | E59: CM0167101 | G59: SO on sewer network | H59: SJ4043365597 | I59: GB531206908100 | J59: MERSEY | K59: RIVER DEE | N59: Not Applicable | O59: Commissioned in 2017 - full year data expected | P59: 147 | Q59: 57 | R59: 53.33333333 | S59: 6 (installed 2017) | T59: 0.9997 | W59: N/A - Ongoing investigation | X59: N/A - Ongoing investigation
A60: Dwr Cymru Welsh Water | B60: LOWER LYDBROOK RIVER WYE CSO | D60: AN0015001 | E60: AN0015001 | G60: SO on sewer network | H60: SO5974416935 | I60: GB109055037111 | J60: Wye - conf Walford Bk to Bigsweir Br | K60: THE RIVER WYE | N60: Not Applicable | O60: Commissioned in 2016 - full year data expected | P60: 0 | Q60: 0 | R60: 0 | S60: 7 (installed 2016) | T60: 0.982
A61: Dwr Cymru Welsh Water | B61: MALPAS SEWAGE TREATMENT WORKS | D61: CM0084901 | E61: CM0084901 | G61: Inlet SO at WwTW | H61: SJ4934446923 | I61: GB111067052230 | J61: Bradley Brook | K61: TRIBUTARY OF WYCH BROOK | N61: Not Applicable | O61: Commissioned in 2017 - full year data expected | P61: 14 | Q61: 18 | R61: 13.66666667 | S61: 6 (installed 2017) | T61: 1
A62: Dwr Cymru Welsh Water | B62: MARLSTON CUM LACHE PS SSO | D62: CM0075401 | E62: CM0075401 | G62: Storm discharge at pumping station | H62: SJ3744062530 | I62: GB111067052150 | J62: Balderton drain | K62: TRIB.OF BALDERTON BROOK | N62: Not Applicable | O62: Commissioned in 2019 - full year data expected | P62: 60.75 | Q62: 22 | R62: 16.75 | S62: 4 (installed 2019) | T62: 0.9975
A63: Dwr Cymru Welsh Water | B63: MARLSTON-CUM-LACHE PUMPING STATION | D63: CM0184801 | E63: CM0184801 | F63: A1 | G63: Storm discharge at pumping station | H63: SJ3861263486 | I63: GB111067052150 | J63: Balderton drain | K63: BALDERTON BROOK | N63: Not Applicable | O63: Commissioned in 2018 - full year data expected | P63: 1.25 | Q63: 2 | R63: 6.4 | S63: 5 (installed 2018) | T63: 0.544 | U63: Telemetry or data archiving failure / issue | V63: Resolved - Jun
A64: Dwr Cymru Welsh Water | B64: MARSHLANDS ROAD PS | D64: CG038120101 | E64: CG0381201 | F64: 1 | G64: Storm discharge at pumping station | H64: SJ2888076240 | I64: 166 | K64: RIVER DEE ESTUARY | N64: Not Applicable | O64: Commissioned pre-2016 - full year data expected | R64: 47.57142857 | S64: 8 (installed 2015) | T64: 0 | U64: Comms failure / issue | V64: N/A - Ongoing investigation
A65: Dwr Cymru Welsh Water | B65: MISS CHAVES COMBINED SEWER OVERFLOW | D65: AN0266301 | E65: AN0266301 | G65: SO on sewer network | H65: SO5064940730 | I65: GB109055037040 | J65: Yazor Bk - source to conf R Wye | K65: WIDEMARSH BROOK | N65: Not Applicable | O65: Commissioned in 2019 - full year data expected | P65: 60.5 | Q65: 6 | R65: 6.75 | S65: 4 (installed 2019) | T65: 0.9995
A66: Dwr Cymru Welsh Water | B66: MORETON ON LUGG WWTW | D66: AH1002201 | E66: AH1002201 | F66: A2 | G66: Storm tank at WwTW | H66: SO 51665 45580 | I66: GB109055036790 | J66: Lugg - conf R Arrow to conf R Wye | K66: RIVER LUGG | N66: Not Applicable | O66: Commissioned in 2019 - full year data expected | P66: 325.75 | Q66: 33 | R66: 34 | S66: 4 (installed 2019) | T66: 0.9999
A67: Dwr Cymru Welsh Water | B67: MOSTON ROAD CSO | D67: NPSWQD009967 | E67: WQD009967 | G67: SO on sewer network | H67: SJ4112569675 | I67: GB111067056930 | J67: Finchetts Gutter | K67: TRIBUTARY OF FINCHETT'S GUTTER | N67: Not Applicable | O67: Commissioned in 2017 - full year data expected | P67: 11.25 | Q67: 5 | R67: 2.333333333 | S67: 6 (installed 2017) | T67: 1
A68: Dwr Cymru Welsh Water | B68: NESTON WASTEWATER TREATMENT WORKS | D68: CM0069001 | E68: CM0069001 | F68: A2 | G68: Storm tank at WwTW | H68: SJ2870176792 | I68: 166 | K68: EST WATERS OF STANNEY BROOK | N68: Not Applicable | O68: Commissioned pre-2016 - full year data expected | P68: 1217.25 | Q68: 117 | R68: 106.7142857 | S68: 8 (installed 2015) | T68: 0.9998
A69: Dwr Cymru Welsh Water | B69: NEW COURT SEWAGE PUMPING STATION | D69: AN0362401 | E69: AN0362401 | F69: 1 | G69: Storm discharge at pumping station | H69: SO5415241575 | I69: GB109055036790 | J69: Lugg - conf R Arrow to conf R Wye | K69: TRIBUTARY OF RIVER LUGG | N69: Not Applicable | O69: Commissioned in 2017 - full year data expected | P69: 427.25 | Q69: 47 | R69: 32.83333333 | S69: 6 (installed 2017) | T69: 0.9994
A70: Dwr Cymru Welsh Water | B70: NEWLAND SEWAGE TREATMENT WORKS | D70: AS1003301 | E70: AS1003301_A2 | F70: A2 | G70: Storm tank at WwTW | H70: SO 53665 09680 | I70: GB109055037111 | J70: Wye - conf Walford Bk to Bigsweir Br | K70: RIVER WYE | N70: Not Applicable | O70: Commissioned in 2016 - full year data expected | P70: 603.25 | Q70: 56 | R70: 40.83333333 | S70: 7 (installed 2016) | T70: 1
A71: Dwr Cymru Welsh Water | B71: CSO AT NEWLAND STW | D71: AS1003301 | E71: AS1003301_A4 | F71: A4 | G71: Storm tank at WwTW | H71: SO 55111 08949 | I71: GB109055029670 | J71: Valley Bk - source to conf R Wye | K71: THE VALLEY BROOK | N71: Not Applicable | O71: Commissioned in 2017 - full year data expected | P71: 1675 | Q71: 85 | R71: 29.83333333 | S71: 6 (installed 2017) | T71: 1
A72: Dwr Cymru Welsh Water | B72: CSO AT NEWLAND STW | D72: AS1003301 | E72: AS1003301_A3 | F72: A3 | G72: Storm tank at WwTW | H72: SO 55111 08949 | I72: GB109055029670 | J72: Valley Bk - source to conf R Wye | K72: THE VALLEY BROOK | N72: Not Applicable | O72: Commissioned in 2017 - full year data expected | P72: 31.75 | Q72: 23 | R72: 31.83333333 | S72: 6 (installed 2017) | T72: 1
A73: Dwr Cymru Welsh Water | B73: OLD DEE BRIDGE (NORTH BANK) CSO | D73: CM0125401 | E73: CM0125401 | G73: SO on sewer network | H73: SJ4065765792 | I73: 166 | K73: RIVER DEE | N73: Not Applicable | O73: Commissioned in 2017 - full year data expected | P73: 0.75 | Q73: 3 | R73: 0.5 | S73: 6 (installed 2017) | T73: 0.9996
A74: Dwr Cymru Welsh Water | B74: CHRISTLETON OLD WOMAN'S LANE CSO | D74: CG0358801 | E74: CG0358801 | G74: SO on sewer network | H74: SJ4372165301 | I74: GB111067056930 | J74: Finchetts Gutter | K74: TRIBUTARY OF CALDY BROOK | N74: Not Applicable | O74: Commissioned in 2019 - full year data expected | P74: 0.25 | Q74: 1 | R74: 0.5 | S74: 4 (installed 2019) | T74: 0.9995
A75: Dwr Cymru Welsh Water | B75: 5 DEE COTTAGES CSO | D75: CM0170101 | E75: CM0170101 | G75: SO on sewer network | H75: SJ2760178628 | I75: GB531206908100 | J75: MERSEY | K75: DEE ESTUARY | N75: Not Applicable | O75: Commissioned pre-2016 - full year data expected | P75: 7.75 | Q75: 3 | R75: 6 | S75: 8 (installed 2015) | T75: 0.489 | U75: Comms failure / issue | V75: N/A - Ongoing investigation
A76: Dwr Cymru Welsh Water | B76: EARLE DRIVE - PARKGATE ROAD CSO | D76: CM0169901 | E76: CM0169901 | G76: SO on sewer network | H76: SJ2783477647 | I76: GB531206908100 | J76: MERSEY | K76: DEE ESTURARY | N76: Not Applicable | O76: Commissioned pre-2016 - full year data expected | P76: 0 | Q76: 0 | R76: 0.25 | S76: 8 (installed 2015) | T76: 0.156 | U76: Comms failure / issue | V76: N/A - Ongoing investigation
A77: Dwr Cymru Welsh Water | B77: NESTON PARKGATE PUMPING STATION | D77: CM0170001 | E77: CM0170001 | F77: A1 | G77: Storm discharge at pumping station | H77: SJ2783477644 | I77: GB531206908100 | J77: MERSEY | K77: DEE ESTUARY | N77: Not Applicable | O77: Commissioned in 2016 - full year data expected | P77: 1029 | Q77: 127 | R77: 49 | S77: 7 (installed 2016) | T77: 0.9992
A78: Dwr Cymru Welsh Water | B78: PEMBRIDGE CSO | D78: EPRJP3525XF | E78: JP3525XF | G78: SO on sewer network | H78: SO3907658475 | I78: GB109055041840 | J78: Arrow - conf Gilwern Bk to conf R Lugg | K78: THE RIVER ARROW | N78: Not Applicable | O78: Commissioned in 2018 - full year data expected | P78: 77 | Q78: 55 | R78: 29.6 | S78: 5 (installed 2018) | T78: 0.9996
A79: Dwr Cymru Welsh Water | B79: PETTY BRIDGE SPS | D79: AN0270001 | E79: AN0270001 | F79: 1 | G79: Storm discharge at pumping station | H79: SO6583554452 | I79: GB109055036780 | J79: Frome - conf Tedstone Bk to conf R Lugg | K79: RIVER FROME | N79: Not Applicable | O79: Commissioned in 2017 - full year data expected | P79: 247.75 | Q79: 83 | R79: 67.5 | S79: 6 (installed 2017) | T79: 1 | W79: Not asset maintenance - Hydraulic capacity | X79: N/A - Hydraulic capacity | Y79: U_IMP4 driver - Stage 4: Potential spill reduction scheme - Not yet on current WINEP/AMP or Green Recovery
A80: Dwr Cymru Welsh Water | B80: GROSVENOR BRIDGE CSO | D80: CG0355401 | E80: CG0355401 | G80: SO on sewer network | H80: SJ4001065463 | I80: 166 | K80: RIVER DEE | N80: Not Applicable | O80: Commissioned in 2017 - full year data expected | P80: 6.25 | Q80: 5 | R80: 3 | S80: 6 (installed 2017) | T80: 0.9989
A81: Dwr Cymru Welsh Water | B81: REAR OF 22 CURZON PARK NORTH CSO | D81: CG0361001 | E81: CG0361001 | G81: SO on sewer network | H81: SJ3976865536 | I81: 166 | K81: RIVER DEE | N81: Not Applicable | O81: Commissioned in 2017 - full year data expected | P81: 0 | Q81: 0 | R81: 0.1666666667 | S81: 6 (installed 2017) | T81: 1
A82: Dwr Cymru Welsh Water | B82: ROSS LOWER CLEEVE WWTW | D82: AS1003701 | E82: AS1003701 | F82: B | G82: Storm tank at WwTW | H82: SO 58370 23520 | I82: GB109055037112 | J82: Wye - Hampton Bishop to conf Kerne Br | K82: RIVER WYE | N82: Not Applicable | O82: Commissioned in 2016 - full year data expected | P82: 72 | Q82: 28 | R82: 31.5 | S82: 7 (installed 2016) | T82: 0.9972
A83: Dwr Cymru Welsh Water | B83: HOPE AND ANCHOR CSO | D83: AN0084201 | E83: AN0084201 | G83: SO on sewer network | H83: SO5955624122 | I83: GB109055037112 | J83: Wye - Hampton Bishop to conf Kerne Br | K83: RIVER WYE | N83: Not Applicable | O83: Commissioned in 2016 - full year data expected | P83: 180.75 | Q83: 60 | R83: 68.28571429 | S83: 7 (installed 2016) | T83: 0.9728 | W83: N/A - Ongoing investigation | X83: N/A - Ongoing investigation
A84: Dwr Cymru Welsh Water | B84: RUARDEAN STW | D84: AS1003901 | E84: AS1003901 | F84: B | G84: Storm tank at WwTW | H84: SO 61700 18220 | I84: GB109055037111 | J84: Wye - conf Walford Bk to Bigsweir Br | K84: TRIBUTARY OF LODGEGROVE BROOK | N84: Not Applicable | O84: Commissioned in 2016 - full year data expected | P84: 641.5 | Q84: 57 | R84: 62.16666667 | S84: 7 (installed 2016) | T84: 0.7098 | U84: Telemetry or data archiving failure / issue | V84: Resolved - Jul | W84: Performance - Infiltration | X84: Scheduled | Y84: Stage 1b: Confirmed "asset maintenance" issue
A85: Dwr Cymru Welsh Water | B85: SAIGHTON SEWAGE TREATMENT WORKS | D85: CM0183401 | E85: CM0183401 | F85: A2 | G85: Storm tank at WwTW | H85: SJ4472661792 | I85: GB111067052140 | J85: Henlake Brook | K85: TRIBUTARY OF POWSEY BROOK | N85: Not Applicable | O85: Commissioned in 2017 - full year data expected | P85: 400.75 | Q85: 114 | R85: 48 | S85: 6 (installed 2017) | T85: 0.9997
A86: Dwr Cymru Welsh Water | B86: SALTNEY SEWERAGE CHESTER STREET PS | D86: CM0020201 | E86: CM0020201 | G86: Storm discharge at pumping station | H86: SJ3865065420 | I86: GB531206908100 | J86: MERSEY | K86: DEE | N86: Not Applicable | O86: Commissioned in 2019 - full year data expected | P86: 33.75 | Q86: 28 | R86: 29 | S86: 4 (installed 2019) | T86: 0.9985
A87: Dwr Cymru Welsh Water | B87: SANDY LANE COMBINED SEWER OVERFLOW | D87: CM0167201 | E87: CM0167201 | G87: SO on sewer network | H87: SJ4087365903 | I87: 166 | K87: RIVER DEE | N87: Not Applicable | O87: Commissioned in 2018 - full year data expected | P87: 35.5 | Q87: 26 | R87: 60.8 | S87: 5 (installed 2018) | T87: 0.9996
A88: Dwr Cymru Welsh Water | B88: SAUGHALL SEAHILL ROAD PS CSO | D88: NPSWQD005510 | E88: WQD005510 | F88: A1 | G88: Storm discharge at pumping station | H88: SJ3560069649 | I88: GB111067056960 | J88: Garden City Drain | K88: GARDEN CITY DRAIN | N88: Not Applicable | O88: Commissioned in 2018 - full year data expected | P88: 43.75 | Q88: 14 | R88: 17.4 | S88: 5 (installed 2018) | T88: 0.9995
A89: Dwr Cymru Welsh Water | B89: SAUGHALL VILLAGE CSO | D89: CM0059101 | E89: CM0059101 | G89: SO on sewer network | H89: SJ3610069257 | I89: GB111067056960 | J89: Garden City Drain | K89: TRIBUTARY OF RIVER DEE | N89: Not Applicable | O89: Commissioned in 2017 - full year data expected | P89: 51.75 | Q89: 21 | R89: 17.83333333 | S89: 6 (installed 2017) | T89: 0.9432
A90: Dwr Cymru Welsh Water | B90: SEDBURY SEWAGE PUMPING STATION | D90: AN030280101 | E90: AN0302801 | F90: A1 | G90: Storm discharge at pumping station | H90: ST5397893371 | I90: 159 | K90: RIVER WYE | N90: Not Applicable | O90: Commissioned in 2017 - full year data expected | P90: 577.75 | Q90: 95 | R90: 61.4 | S90: 6 (installed 2017) | T90: 0.9987
A91: Dwr Cymru Welsh Water | B91: SHOBDON STW | D91: AN0272501 | E91: AN0272501 | G91: Inlet SO at WwTW | H91: SO4060060510 | I91: GB109055041940 | J91: Pinsley Bk - source to conf R Lugg | K91: PINSLEY BROOK | N91: Not Applicable | O91: Commissioned in 2017 - full year data expected | P91: 938 | Q91: 143 | R91: 148.1666667 | S91: 6 (installed 2017) | T91: 0.9995 | W91: N/A - Ongoing investigation | X91: N/A - Ongoing investigation
A92: Dwr Cymru Welsh Water | B92: BARGATES NO 2174 CSO | D92: CM0200301 | E92: CM0200301 | G92: SO on sewer network | H92: SJ5399141827 | I92: GB111067052200 | J92: Wych Upper (Worthenbury Upper) | K92: TRIBUTARY OF RED BROOK | N92: Not Applicable | O92: Commissioned in 2017 - full year data expected | P92: 37.5 | Q92: 35 | R92: 38.2 | S92: 6 (installed 2017) | T92: 0.9961
A93: Dwr Cymru Welsh Water | B93: SMALLBROOK NO 2177 CSO | D93: CM0200601 | E93: CM0200601 | G93: SO on sewer network | H93: SJ5368841684 | I93: GB111067052200 | J93: Wych Upper (Worthenbury Upper) | K93: TRIBUTARY OF RED BROOK | N93: Not Applicable | O93: Commissioned in 2017 - full year data expected | P93: 13 | Q93: 18 | R93: 17 | S93: 6 (installed 2017) | T93: 0.9805
A94: Dwr Cymru Welsh Water | B94: JUBILEE PARK NO 3175 CSO | D94: CG0342701 | E94: CG0342701 | G94: SO on sewer network | H94: SJ5398441480 | I94: GB111067052200 | J94: Wych Upper (Worthenbury Upper) | K94: TRIBUTARY OF RED BROOK | N94: Not Applicable | O94: Commissioned in 2017 - full year data expected | P94: 31 | Q94: 18 | R94: 14.5 | S94: 6 (installed 2017) | T94: 0.9981
A95: Dwr Cymru Welsh Water | B95: WEST OF WEALSTONE LANE CSO | D95: CM0116401 | E95: CM0116401 | G95: SO on sewer network | H95: SJ4029168077 | I95: GB111067056930 | J95: Finchetts Gutter | K95: BACHE BROOK | N95: Not Applicable | O95: Commissioned in 2017 - full year data expected | P95: 22.25 | Q95: 21 | R95: 13.66666667 | S95: 6 (installed 2017) | T95: 0.9998
A96: Dwr Cymru Welsh Water | B96: ST BRIAVELS SEWAGE TREATMENT WORKS | D96: AS1004501 | E96: AS1004501 | F96: A2 | G96: Inlet SO at WwTW | H96: SO5374704785 | I96: 159 | K96: WYE ESTUARY | N96: Not Applicable | O96: Commissioned in 2017 - full year data expected | P96: 1278.75 | Q96: 149 | R96: 64.66666667 | S96: 6 (installed 2017) | T96: 0.9977
A97: Dwr Cymru Welsh Water | B97: ST MARTINS ALLOTMENTS CSO HEREFORD | D97: AN0078501 | E97: AN0078501 | G97: SO on sewer network | H97: SO5072239513 | I97: GB109055037113 | J97: Wye - Bredwardine Br to Hampton Bishop | K97: RIVER WYE | N97: Not Applicable | O97: Commissioned in 2016 - full year data expected | P97: 149.25 | Q97: 30 | R97: 32.14285714 | S97: 7 (installed 2016) | T97: 0.9994
A98: Dwr Cymru Welsh Water | B98: ST MARTINS SPS NEFOD OSWESTRY | D98: CM0230701 | E98: CM0230701 | G98: Storm discharge at pumping station | H98: SJ3092036230 | I98: GB111067051600 | J98: Morlas Brook | K98: MORLAIS BROOK | N98: Not Applicable | O98: Commissioned in 2019 - full year data expected | P98: 50 | Q98: 10 | R98: 6.5 | S98: 4 (installed 2019) | T98: 0.9914
A99: Dwr Cymru Welsh Water | B99: ST.MARTIN'S COMBINED SEWER OVERFLOW | D99: CM0081201 | E99: CM0081201 | G99: SO on sewer network | H99: SJ3172336168 | I99: GB109054055010 | J99: Perry - source to conf Common Bk | K99: TRIB.OF MORLAS BROOK | N99: Not Applicable | O99: Commissioned in 2017 - full year data expected | P99: 48 | Q99: 15 | R99: 10.16666667 | S99: 6 (installed 2017) | T99: 0.9998
A100: Dwr Cymru Welsh Water | B100: CSO AT TARRINGTON STW | D100: AN0338901 | E100: AN0338901 | G100: Storm tank at WwTW | H100: SO6154641491 | I100: GB109055036650 | J100: Tarrington Bk - source to conf R Frome | K100: THE RIVER FROME | N100: Not Applicable | O100: Commissioned in 2016 - full year data expected | P100: 1425.75 | Q100: 97 | R100: 37.28571429 | S100: 7 (installed 2016) | T100: 0.9978 | W100: N/A - Ongoing investigation | X100: N/A - Ongoing investigation
A101: Dwr Cymru Welsh Water | B101: MILLBROOK PARK PUMPING STATION | D101: CM0190701 | E101: CM0190701 | F101: 1 | G101: Storm discharge at pumping station | H101: SJ4837058721 | I101: GB111067052120 | J101: Aldford Brook | K101: MILLBROOK | N101: Not Applicable | O101: Commissioned in 2018 - full year data expected | P101: 20.25 | Q101: 4 | R101: 4.2 | S101: 5 (installed 2018) | T101: 0.8042 | U101: Telemetry or data archiving failure / issue | V101: Resolved - May
A102: Dwr Cymru Welsh Water | B102: THE DINGLE COMBINED SEWER OVERFLOW | D102: CG0361401 | E102: CG0361401 | G102: SO on sewer network | H102: SJ4013065215 | I102: 166 | K102: RIVER DEE | N102: Not Applicable | O102: Commissioned in 2017 - full year data expected | P102: 0.75 | Q102: 3 | R102: 5.833333333 | S102: 6 (installed 2017) | T102: 0.7949 | U102: Comms failure / issue | V102: N/A - Ongoing investigation
A103: Dwr Cymru Welsh Water | B103: THE DINGLE CHESTER CSO | D103: CG0361101 | E103: CG0361101 | G103: SO on sewer network | H103: SJ4017865447 | I103: 166 | K103: RIVER DEE | N103: Not Applicable | O103: Commissioned in 2017 - full year data expected | P103: 69 | Q103: 94 | R103: 69.66666667 | S103: 6 (installed 2017) | T103: 0.9872
A104: Dwr Cymru Welsh Water | B104: THE GROVES CSO | D104: CM0125001 | E104: CM0125001 | G104: SO on sewer network | H104: SJ4086865972 | I104: 166 | K104: RIVER DEE | N104: Not Applicable | O104: Commissioned in 2017 - full year data expected | P104: 106.25 | Q104: 50 | R104: 45.66666667 | S104: 6 (installed 2017) | T104: 0.9993
A105: Dwr Cymru Welsh Water | B105: CSO TILSTON SEWAGE TREATMENT WORKS | D105: CM0021602 | E105: CM0021602 | G105: Inlet SO at WwTW | H105: SJ4547551688 | I105: GB111067052120 | J105: Aldford Brook | K105: TRIBUTARY OF CARDEN BROOK | N105: Not Applicable | O105: Commissioned in 2017 - full year data expected | P105: 48.75 | Q105: 31 | R105: 39 | S105: 6 (installed 2017) | T105: 0.9851
A106: Dwr Cymru Welsh Water | B106: WELL STREET COMBINED SEWER OVERFLOW | D106: EPRMP3422GZ | E106: MP3422GZ | G106: SO on sewer network | H106: SJ4891747275 | I106: GB111067052230 | J106: Bradley Brook | K106: UNNAMED TRIB OF UNNAMBED RIVER | N106: Not Applicable | O106: Commissioned in 2020 - full year data expected | P106: 0 | Q106: 0 | R106: 0 | S106: 3 (installed 2020) | T106: 0.8049 | U106: Comms failure / issue | V106: N/A - Ongoing investigation
A107: Dwr Cymru Welsh Water | B107: MANHOLE 9 CSO | D107: AN0125901 | E107: AN0125901 | G107: SO on sewer network | H107: SO4000852556 | I107: GB109055036580 | J107: Stretford Bk - source to conf R Arrow | K107: NEWBRIDGE BROOK | N107: Not Applicable | O107: Commissioned in 2017 - full year data expected | P107: 152 | Q107: 70 | R107: 62.83333333 | S107: 6 (installed 2017) | T107: 0.9928 | W107: Not asset maintenance - Hydraulic capacity | X107: N/A - Hydraulic capacity | Y107: U_IMP4 driver - Stage 4: Potential spill reduction scheme - Not yet on current WINEP/AMP or Green Recovery
A108: Dwr Cymru Welsh Water | B108: WHITECROSS ROAD CSO HEREFORD | D108: AN0078001 | E108: AN0078001 | G108: SO on sewer network | H108: SO5030239626 | I108: GB109055037113 | J108: Wye - Bredwardine Br to Hampton Bishop | K108: BELVEDERE BROOK | N108: Not Applicable | O108: Commissioned pre-2016 - full year data expected | P108: 0.25 | Q108: 1 | R108: 2.25 | S108: 8 (installed 2015) | T108: 1
A109: Dwr Cymru Welsh Water | B109: WILTON SEWAGE PUMPING STATION | D109: AN0372801 | E109: AN0372801 | F109: A1 | G109: Storm discharge at pumping station | H109: SO5844823796 | I109: GB109055037112 | J109: Wye - Hampton Bishop to conf Kerne Br | K109: RIVER WYE | N109: Not Applicable | O109: Commissioned in 2016 - full year data expected | P109: 100.75 | Q109: 13 | R109: 3.714285714 | S109: 7 (installed 2016) | T109: 0.9624
A110: Dwr Cymru Welsh Water | B110: WYEBANK RD CSO | D110: AN0035401 | E110: AN0035401 | G110: SO on sewer network | H110: ST5411793688 | I110: 159 | K110: RIVER WYE | N110: Not Applicable | O110: Commissioned in 2017 - full year data expected | P110: 18.75 | Q110: 36 | R110: 24.66666667 | S110: 6 (installed 2017) | T110: 0.9973
A111: Dwr Cymru Welsh Water | B111: #TBC | C111: 50 Mount Pleasant CSO, Saltney | E111: Unpermitted-72606 | G111: SO on sewer network | H111: SJ 38797 65622 | I111: 166 | K111: RIVER DEE | N111: Not Applicable | O111: Commissioned in 2020 - full year data expected | P111: 125 | Q111: 121 | R111: 92.66666667 | S111: 3 (installed 2020) | T111: 0.986
A112: Dwr Cymru Welsh Water | B112: #TBC | C112: 72 Cheyney Road CSO, Chester | E112: Unpermitted-73325 | G112: SO on sewer network | H112: SJ 39691 67435 | I112: GB111067056930 | J112: Finchetts Gutter | K112: RIVER DEE | N112: Not Applicable | O112: Commissioned in 2020 - full year data expected | P112: 6.75 | Q112: 8 | R112: 5.666666667 | S112: 3 (installed 2020) | T112: 0.9989
A113: Dwr Cymru Welsh Water | B113: #TBC | C113: Eign Road CSO, Hereford | E113: Unpermitted-31896 | G113: SO on sewer network | H113: SO 52217 39259 | I113: GB109055037040 | J113: Yazor Bk - source to conf R Wye | K113: RIVER WYE | N113: Not Applicable | O113: Commissioned in 2020 - full year data expected | P113: 7.5 | Q113: 17 | R113: 29.33333333 | S113: 3 (installed 2020) | T113: 0.9994
A114: Dwr Cymru Welsh Water | B114: #TBC | C114: Belvedere Lane CSO, Hereford | E114: Unpermitted-31903 | G114: SO on sewer network | H114: SO 50192 39502 | I114: GB109055037113 | J114: Wye - Bredwardine Br to Hampton Bishop | K114: UNNAMED TRIB OF RIVER WYE | N114: Not Applicable | O114: Commissioned in 2020 - full year data expected | P114: 0.5 | Q114: 2 | R114: 3.333333333 | S114: 3 (installed 2020) | T114: 0.9999
A115: Dwr Cymru Welsh Water | B115: #TBC | C115: Park West CSO, Heswall | E115: Unpermitted-73326 | G115: SO on sewer network | H115: SJ 25908 80903 | I115: 166 | K115: GAYTON HOLE | N115: Not Applicable | O115: Commissioned in 2020 - full year data expected | P115: 8 | Q115: 6 | R115: 8 | S115: 3 (installed 2020) | T115: 0.9989
A116: Dwr Cymru Welsh Water | B116: PETERCHURCH WASTEWATER TREATMENT WK | D116: AH1003001 | E116: AH1003001 | F116: A2 | G116: Storm tank at WwTW | H116: SO3480137970 | I116: GB109055036870 | J116: Dore - source to conf R Monmow | K116: River Dore | N116: Not Applicable | O116: Commissioned in 2021 - full year data expected | P116: 45 | Q116: 10 | R116: 7.333333333 | S116: 2 (installed 2021) | T116: 1
A117: Dwr Cymru Welsh Water | B117: PONTRILAS WASTEWATER TREATMENT WRKS | D117: AH1003301 | E117: AH1003301 | F117: A2 | G117: Storm tank at WwTW | H117: SO3942427742 | I117: GB109055036810 | J117: Dulas Bk - source to conf R Dore | K117: Dulas Brook | N117: Not Applicable | O117: Commissioned in 2020 - full year data expected | P117: 915.75 | Q117: 81 | R117: 70.66666667 | S117: 3 (installed 2020) | T117: 0.9991 | W117: N/A - Ongoing investigation | X117: N/A - Ongoing investigation
A118: Dwr Cymru Welsh Water | B118: STATION ST COMBINED SEWER OVERFLOW | D118: AN0014701 | E118: AN0014701 | G118: SO on sewer network | H118: SO6034024308 | I118: GB109055029730 | J118: Rudhall Bk - source to conf R Wye | K118: The Small Brook | N118: Not Applicable | O118: Commissioned in 2017 - full year data expected | P118: 0 | Q118: 0 | R118: 0.8 | S118: 6 (installed 2017) | T118: 0.9995
A119: Dwr Cymru Welsh Water | B119: TANKFIELDS CSO | D119: CM0081501 | E119: CM0081501 | G119: SO on sewer network | H119: SJ2920877160 | I119: 166 | K119: The Stanney Brook | N119: Not Applicable | O119: Commissioned in 2020 - full year data expected | P119: 74.5 | Q119: 47 | R119: 39.33333333 | S119: 3 (installed 2020) | T119: 0.9997
A120: Dwr Cymru Welsh Water | B120: CSO AT WILLASTON MILL SPS | D120: EPRMP3329GB | E120: MP3329GB | G120: Storm discharge at pumping station | H120: SJ3242078130 | I120: GB112068060270 | J120: Dibbinsdale Brook and Clatter Brook | K120: An unnamed tributary of Clatter Brook | N120: Not Applicable | O120: Commissioned in 2021 - full year data expected | P120: 0 | Q120: 0 | R120: 0 | S120: 2 (installed 2021) | T120: 0.9997
A121: Dwr Cymru Welsh Water | B121: WHITCHURCH (RISING SUN) WWTW | D121: CM0073101 | E121: CM0073101 | F121: A2 | G121: Storm tank at WwTW | H121: SJ5144641508 | I121: GB111067052200 | J121: Wych Upper (Worthenbury Upper) | K121: Wych Brook | N121: Not Applicable | O121: Commissioned in 2020 - full year data expected | P121: 412.25 | Q121: 61 | R121: 68 | S121: 3 (installed 2020) | T121: 1
A122: Dwr Cymru Welsh Water | B122: Weobley Wastewater Treatment Works | C122: WEOBLEY WWTW | D122: AL1003501 | E122: AL1003501 | G122: Storm tank at WwTW | H122: SO3955952047 | I122: GB109055036580 | J122: Stretford Bk - source to conf R Arrow | K122: Newbridge Brook | N122: Not Applicable | O122: Commissioned in 2022 - full year data expected | P122: 866.75 | Q122: 44 | R122: 28 | S122: 1 (installed 2022) | T122: 0.1649 | U122: Telemetry or data archiving failure / issue | V122: N/A - Ongoing investigation
A123: Dwr Cymru Welsh Water | B123: #TBC | C123: ROSS-ON-WYE ASHBURTON TRADING ESTATE | E123: Unpermitted-31139 | G123: Storm discharge at pumping station | H123: SO6074424403 | I123: GB109055029730 | J123: Rudhall Bk - source to conf R Wye | K123: RUDHALL BROOK | N123: Not Applicable | O123: Commissioned in 2021 - full year data expected | P123: 28.25 | Q123: 18 | R123: 9.5 | S123: 2 (installed 2021) | T123: 0.9996
A124: Dwr Cymru Welsh Water | B124: #TBC | C124: 1 Caradoc Drive CSO, Leominster | E124: Unpermitted-75049 | G124: SO on sewer network | H124: SO4999158465 | I124: GB109055041840 | J124: Arrow - conf Gilwern Bk to conf R Lugg | K124: Unknown | N124: Not Applicable | O124: Commissioned in 2021 - full year data expected | P124: 3 | Q124: 4 | R124: 5.5 | S124: 2 (installed 2021) | T124: 0.9923
A125: Dwr Cymru Welsh Water | B125: RHOSWIEL BRIDGE CSO | C125: RHOSWIEL WESTON RHYN - SSO | D125: CM0199201 | E125: CM0199201 | G125: SO on sewer network | H125: SJ 29849 35947 | I125: GB111067051600 | J125: Morlas Brook | K125: Tributary of Morlas Brook | N125: Not Applicable | O125: Commissioned in 2018 - full year data expected | R125: 0 | S125: 5 (installed 2018) | T125: 0 | U125: Comms failure / issue | V125: N/A - Ongoing investigation
A126: Dwr Cymru Welsh Water | B126: CHIRK BANK PS | C126: CHIRK BANK PS | D126: CM0230601 | E126: CM0230601 | G126: Storm discharge at pumping station | H126: SJ 29440 37370 | I126: GB111067051910 | J126: Ceiriog - confluence Dee to Teirw | K126: River Ceiriog | N126: Not Applicable | O126: Commissioned in 2018 - full year data expected | P126: 1664.75 | Q126: 144 | R126: 51.8 | S126: 5 (installed 2018) | T126: 0.9961 | W126: N/A - Ongoing investigation | X126: N/A - Ongoing investigation
A127: Dwr Cymru Welsh Water | B127: #TBC | C127: Castle Drive CSO, Chester | E127: Unpermitted-3079 | G127: SO on sewer network | H127: SJ 40640 65780 | I127: 166 | K127: RIVER DEE | N127: Not Applicable | O127: Feb 2023 | P127: 14.5 | Q127: 37 | S127: <1 yr (installed 2023) | T127: 0.9997070313
A128: Dwr Cymru Welsh Water | B128: #TBC | C128: Hereford Cycle Track | E128: Unpermitted-74532 | G128: SO on sewer network | H128: SO 50505 39622 | I128: GB109055037113 | J128: Wye - Bredwardine Br to Hampton Bishop | K128: RIVER WYE | N128: Not Applicable | O128: Mar 2023 | P128: 336.25 | Q128: 15 | S128: <1 yr (installed 2023) | T128: 0.9981
A129: Dwr Cymru Welsh Water | B129: LYDBROOK SEWAGE TREATMENT WORKS | D129: AS1002901 | E129: AS1002901 | F129: A2 | G129: Storm tank at WwTW | H129: SO5826616920 | I129: GB109055037111 | J129: Wye - conf Walford Bk to Bigsweir Br | K129: RIVER WYE | N129: Not Applicable | O129: Commissioned in 2016 - full year data expected | P129: 17.75 | Q129: 6 | R129: 6 | S129: 7 (installed 2016) | T129: 0.9993

Sheet % Conversion (hidden)
A2: EDM Operation - % of reporting period EDM operational Conversion
A3: =IF(OR(CELL("format",'EDM SO Annual Return'!T3)="P0",CELL("format",'EDM SO Annual Return'!T3)="P1",CELL("format",'EDM SO Annual Return'!T3)="P2",CELL("format",'EDM SO Annual Return'!T3)="P3",CELL("format",'EDM SO Annual Return'!T3)="P4"),'EDM SO Annual Return'!T3*100,'EDM SO Annual Return'!T3) -> 99.95
A4: =IF(OR(CELL("format",'EDM SO Annual Return'!T4)="P0",CELL("format",'EDM SO Annual Return'!T4)="P1",CELL("format",'EDM SO Annual Return'!T4)="P2",CELL("format",'EDM SO Annual Return'!T4)="P3",CELL("format",'EDM SO Annual Return'!T4)="P4"),'EDM SO Annual Return'!T4*100,'EDM SO Annual Return'!T4) -> 99.97
A5: =IF(OR(CELL("format",'EDM SO Annual Return'!T5)="P0",CELL("format",'EDM SO Annual Return'!T5)="P1",CELL("format",'EDM SO Annual Return'!T5)="P2",CELL("format",'EDM SO Annual Return'!T5)="P3",CELL("format",'EDM SO Annual Return'!T5)="P4"),'EDM SO Annual Return'!T5*100,'EDM SO Annual Return'!T5) -> 99.99
A6: =IF(OR(CELL("format",'EDM SO Annual Return'!T6)="P0",CELL("format",'EDM SO Annual Return'!T6)="P1",CELL("format",'EDM SO Annual Return'!T6)="P2",CELL("format",'EDM SO Annual Return'!T6)="P3",CELL("format",'EDM SO Annual Return'!T6)="P4"),'EDM SO Annual Return'!T6*100,'EDM SO Annual Return'!T6) -> 93.09
A7: =IF(OR(CELL("format",'EDM SO Annual Return'!T7)="P0",CELL("format",'EDM SO Annual Return'!T7)="P1",CELL("format",'EDM SO Annual Return'!T7)="P2",CELL("format",'EDM SO Annual Return'!T7)="P3",CELL("format",'EDM SO Annual Return'!T7)="P4"),'EDM SO Annual Return'!T7*100,'EDM SO Annual Return'!T7) -> 99.91
A8: =IF(OR(CELL("format",'EDM SO Annual Return'!T8)="P0",CELL("format",'EDM SO Annual Return'!T8)="P1",CELL("format",'EDM SO Annual Return'!T8)="P2",CELL("format",'EDM SO Annual Return'!T8)="P3",CELL("format",'EDM SO Annual Return'!T8)="P4"),'EDM SO Annual Return'!T8*100,'EDM SO Annual Return'!T8) -> 99.97
A9: =IF(OR(CELL("format",'EDM SO Annual Return'!T9)="P0",CELL("format",'EDM SO Annual Return'!T9)="P1",CELL("format",'EDM SO Annual Return'!T9)="P2",CELL("format",'EDM SO Annual Return'!T9)="P3",CELL("format",'EDM SO Annual Return'!T9)="P4"),'EDM SO Annual Return'!T9*100,'EDM SO Annual Return'!T9) -> 98.92
A10: =IF(OR(CELL("format",'EDM SO Annual Return'!T10)="P0",CELL("format",'EDM SO Annual Return'!T10)="P1",CELL("format",'EDM SO Annual Return'!T10)="P2",CELL("format",'EDM SO Annual Return'!T10)="P3",CELL("format",'EDM SO Annual Return'!T10)="P4"),'EDM SO Annual Return'!T10*100,'EDM SO Annual Return'!T10) -> 100
A11: =IF(OR(CELL("format",'EDM SO Annual Return'!T11)="P0",CELL("format",'EDM SO Annual Return'!T11)="P1",CELL("format",'EDM SO Annual Return'!T11)="P2",CELL("format",'EDM SO Annual Return'!T11)="P3",CELL("format",'EDM SO Annual Return'!T11)="P4"),'EDM SO Annual Return'!T11*100,'EDM SO Annual Return'!T11) -> 99.14
A12: =IF(OR(CELL("format",'EDM SO Annual Return'!T12)="P0",CELL("format",'EDM SO Annual Return'!T12)="P1",CELL("format",'EDM SO Annual Return'!T12)="P2",CELL("format",'EDM SO Annual Return'!T12)="P3",CELL("format",'EDM SO Annual Return'!T12)="P4"),'EDM SO Annual Return'!T12*100,'EDM SO Annual Return'!T12) -> 99.97
A13: =IF(OR(CELL("format",'EDM SO Annual Return'!T13)="P0",CELL("format",'EDM SO Annual Return'!T13)="P1",CELL("format",'EDM SO Annual Return'!T13)="P2",CELL("format",'EDM SO Annual Return'!T13)="P3",CELL("format",'EDM SO Annual Return'!T13)="P4"),'EDM SO Annual Return'!T13*100,'EDM SO Annual Return'!T13) -> 99.85
A14: =IF(OR(CELL("format",'EDM SO Annual Return'!T14)="P0",CELL("format",'EDM SO Annual Return'!T14)="P1",CELL("format",'EDM SO Annual Return'!T14)="P2",CELL("format",'EDM SO Annual Return'!T14)="P3",CELL("format",'EDM SO Annual Return'!T14)="P4"),'EDM SO Annual Return'!T14*100,'EDM SO Annual Return'!T14) -> 56.91
A15: =IF(OR(CELL("format",'EDM SO Annual Return'!T15)="P0",CELL("format",'EDM SO Annual Return'!T15)="P1",CELL("format",'EDM SO Annual Return'!T15)="P2",CELL("format",'EDM SO Annual Return'!T15)="P3",CELL("format",'EDM SO Annual Return'!T15)="P4"),'EDM SO Annual Return'!T15*100,'EDM SO Annual Return'!T15) -> 56.3
A16: =IF(OR(CELL("format",'EDM SO Annual Return'!T16)="P0",CELL("format",'EDM SO Annual Return'!T16)="P1",CELL("format",'EDM SO Annual Return'!T16)="P2",CELL("format",'EDM SO Annual Return'!T16)="P3",CELL("format",'EDM SO Annual Return'!T16)="P4"),'EDM SO Annual Return'!T16*100,'EDM SO Annual Return'!T16) -> 99.97
A17: =IF(OR(CELL("format",'EDM SO Annual Return'!T17)="P0",CELL("format",'EDM SO Annual Return'!T17)="P1",CELL("format",'EDM SO Annual Return'!T17)="P2",CELL("format",'EDM SO Annual Return'!T17)="P3",CELL("format",'EDM SO Annual Return'!T17)="P4"),'EDM SO Annual Return'!T17*100,'EDM SO Annual Return'!T17) -> 99.95
A18: =IF(OR(CELL("format",'EDM SO Annual Return'!T18)="P0",CELL("format",'EDM SO Annual Return'!T18)="P1",CELL("format",'EDM SO Annual Return'!T18)="P2",CELL("format",'EDM SO Annual Return'!T18)="P3",CELL("format",'EDM SO Annual Return'!T18)="P4"),'EDM SO Annual Return'!T18*100,'EDM SO Annual Return'!T18) -> 99.96
A19: =IF(OR(CELL("format",'EDM SO Annual Return'!T19)="P0",CELL("format",'EDM SO Annual Return'!T19)="P1",CELL("format",'EDM SO Annual Return'!T19)="P2",CELL("format",'EDM SO Annual Return'!T19)="P3",CELL("format",'EDM SO Annual Return'!T19)="P4"),'EDM SO Annual Return'!T19*100,'EDM SO Annual Return'!T19) -> 94.1
A20: =IF(OR(CELL("format",'EDM SO Annual Return'!T20)="P0",CELL("format",'EDM SO Annual Return'!T20)="P1",CELL("format",'EDM SO Annual Return'!T20)="P2",CELL("format",'EDM SO Annual Return'!T20)="P3",CELL("format",'EDM SO Annual Return'!T20)="P4"),'EDM SO Annual Return'!T20*100,'EDM SO Annual Return'!T20) -> 99.95
A21: =IF(OR(CELL("format",'EDM SO Annual Return'!T21)="P0",CELL("format",'EDM SO Annual Return'!T21)="P1",CELL("format",'EDM SO Annual Return'!T21)="P2",CELL("format",'EDM SO Annual Return'!T21)="P3",CELL("format",'EDM SO Annual Return'!T21)="P4"),'EDM SO Annual Return'!T21*100,'EDM SO Annual Return'!T21) -> 99.95
A22: =IF(OR(CELL("format",'EDM SO Annual Return'!T22)="P0",CELL("format",'EDM SO Annual Return'!T22)="P1",CELL("format",'EDM SO Annual Return'!T22)="P2",CELL("format",'EDM SO Annual Return'!T22)="P3",CELL("format",'EDM SO Annual Return'!T22)="P4"),'EDM SO Annual Return'!T22*100,'EDM SO Annual Return'!T22) -> 99.96
A23: =IF(OR(CELL("format",'EDM SO Annual Return'!T23)="P0",CELL("format",'EDM SO Annual Return'!T23)="P1",CELL("format",'EDM SO Annual Return'!T23)="P2",CELL("format",'EDM SO Annual Return'!T23)="P3",CELL("format",'EDM SO Annual Return'!T23)="P4"),'EDM SO Annual Return'!T23*100,'EDM SO Annual Return'!T23) -> 99.98
A24: =IF(OR(CELL("format",'EDM SO Annual Return'!T24)="P0",CELL("format",'EDM SO Annual Return'!T24)="P1",CELL("format",'EDM SO Annual Return'!T24)="P2",CELL("format",'EDM SO Annual Return'!T24)="P3",CELL("format",'EDM SO Annual Return'!T24)="P4"),'EDM SO Annual Return'!T24*100,'EDM SO Annual Return'!T24) -> 93.52
A25: =IF(OR(CELL("format",'EDM SO Annual Return'!#REF!)="P0",CELL("format",'EDM SO Annual Return'!#REF!)="P1",CELL("format",'EDM SO Annual Return'!#REF!)="P2",CELL("format",'EDM SO Annual Return'!#REF!)="P3",CELL("format",'EDM SO Annual Return'!#REF!)="P4"),'EDM SO Annual Return'!#REF!*100,'EDM SO Annual Return'!#REF!) -> 
A26: =IF(OR(CELL("format",'EDM SO Annual Return'!T25)="P0",CELL("format",'EDM SO Annual Return'!T25)="P1",CELL("format",'EDM SO Annual Return'!T25)="P2",CELL("format",'EDM SO Annual Return'!T25)="P3",CELL("format",'EDM SO Annual Return'!T25)="P4"),'EDM SO Annual Return'!T25*100,'EDM SO Annual Return'!T25) -> 99.71
A27: =IF(OR(CELL("format",'EDM SO Annual Return'!T26)="P0",CELL("format",'EDM SO Annual Return'!T26)="P1",CELL("format",'EDM SO Annual Return'!T26)="P2",CELL("format",'EDM SO Annual Return'!T26)="P3",CELL("format",'EDM SO Annual Return'!T26)="P4"),'EDM SO Annual Return'!T26*100,'EDM SO Annual Return'!T26) -> 95.36
A28: =IF(OR(CELL("format",'EDM SO Annual Return'!T27)="P0",CELL("format",'EDM SO Annual Return'!T27)="P1",CELL("format",'EDM SO Annual Return'!T27)="P2",CELL("format",'EDM SO Annual Return'!T27)="P3",CELL("format",'EDM SO Annual Return'!T27)="P4"),'EDM SO Annual Return'!T27*100,'EDM SO Annual Return'!T27) -> 99.98
A29: =IF(OR(CELL("format",'EDM SO Annual Return'!T28)="P0",CELL("format",'EDM SO Annual Return'!T28)="P1",CELL("format",'EDM SO Annual Return'!T28)="P2",CELL("format",'EDM SO Annual Return'!T28)="P3",CELL("format",'EDM SO Annual Return'!T28)="P4"),'EDM SO Annual Return'!T28*100,'EDM SO Annual Return'!T28) -> 98.73
A30: =IF(OR(CELL("format",'EDM SO Annual Return'!T29)="P0",CELL("format",'EDM SO Annual Return'!T29)="P1",CELL("format",'EDM SO Annual Return'!T29)="P2",CELL("format",'EDM SO Annual Return'!T29)="P3",CELL("format",'EDM SO Annual Return'!T29)="P4"),'EDM SO Annual Return'!T29*100,'EDM SO Annual Return'!T29) -> 91.44
A31: =IF(OR(CELL("format",'EDM SO Annual Return'!T30)="P0",CELL("format",'EDM SO Annual Return'!T30)="P1",CELL("format",'EDM SO Annual Return'!T30)="P2",CELL("format",'EDM SO Annual Return'!T30)="P3",CELL("format",'EDM SO Annual Return'!T30)="P4"),'EDM SO Annual Return'!T30*100,'EDM SO Annual Return'!T30) -> 99.85
A32: =IF(OR(CELL("format",'EDM SO Annual Return'!T31)="P0",CELL("format",'EDM SO Annual Return'!T31)="P1",CELL("format",'EDM SO Annual Return'!T31)="P2",CELL("format",'EDM SO Annual Return'!T31)="P3",CELL("format",'EDM SO Annual Return'!T31)="P4"),'EDM SO Annual Return'!T31*100,'EDM SO Annual Return'!T31) -> 58.48
A33: =IF(OR(CELL("format",'EDM SO Annual Return'!T32)="P0",CELL("format",'EDM SO Annual Return'!T32)="P1",CELL("format",'EDM SO Annual Return'!T32)="P2",CELL("format",'EDM SO Annual Return'!T32)="P3",CELL("format",'EDM SO Annual Return'!T32)="P4"),'EDM SO Annual Return'!T32*100,'EDM SO Annual Return'!T32) -> 0
A34: =IF(OR(CELL("format",'EDM SO Annual Return'!T33)="P0",CELL("format",'EDM SO Annual Return'!T33)="P1",CELL("format",'EDM SO Annual Return'!T33)="P2",CELL("format",'EDM SO Annual Return'!T33)="P3",CELL("format",'EDM SO Annual Return'!T33)="P4"),'EDM SO Annual Return'!T33*100,'EDM SO Annual Return'!T33) -> 98.56
A35: =IF(OR(CELL("format",'EDM SO Annual Return'!T34)="P0",CELL("format",'EDM SO Annual Return'!T34)="P1",CELL("format",'EDM SO Annual Return'!T34)="P2",CELL("format",'EDM SO Annual Return'!T34)="P3",CELL("format",'EDM SO Annual Return'!T34)="P4"),'EDM SO Annual Return'!T34*100,'EDM SO Annual Return'!T34) -> 56.89
A36: =IF(OR(CELL("format",'EDM SO Annual Return'!T35)="P0",CELL("format",'EDM SO Annual Return'!T35)="P1",CELL("format",'EDM SO Annual Return'!T35)="P2",CELL("format",'EDM SO Annual Return'!T35)="P3",CELL("format",'EDM SO Annual Return'!T35)="P4"),'EDM SO Annual Return'!T35*100,'EDM SO Annual Return'!T35) -> 99.98
A37: =IF(OR(CELL("format",'EDM SO Annual Return'!T36)="P0",CELL("format",'EDM SO Annual Return'!T36)="P1",CELL("format",'EDM SO Annual Return'!T36)="P2",CELL("format",'EDM SO Annual Return'!T36)="P3",CELL("format",'EDM SO Annual Return'!T36)="P4"),'EDM SO Annual Return'!T36*100,'EDM SO Annual Return'!T36) -> 99.98
A38: =IF(OR(CELL("format",'EDM SO Annual Return'!T37)="P0",CELL("format",'EDM SO Annual Return'!T37)="P1",CELL("format",'EDM SO Annual Return'!T37)="P2",CELL("format",'EDM SO Annual Return'!T37)="P3",CELL("format",'EDM SO Annual Return'!T37)="P4"),'EDM SO Annual Return'!T37*100,'EDM SO Annual Return'!T37) -> 99.6
A39: =IF(OR(CELL("format",'EDM SO Annual Return'!T38)="P0",CELL("format",'EDM SO Annual Return'!T38)="P1",CELL("format",'EDM SO Annual Return'!T38)="P2",CELL("format",'EDM SO Annual Return'!T38)="P3",CELL("format",'EDM SO Annual Return'!T38)="P4"),'EDM SO Annual Return'!T38*100,'EDM SO Annual Return'!T38) -> 99.95
A40: =IF(OR(CELL("format",'EDM SO Annual Return'!T39)="P0",CELL("format",'EDM SO Annual Return'!T39)="P1",CELL("format",'EDM SO Annual Return'!T39)="P2",CELL("format",'EDM SO Annual Return'!T39)="P3",CELL("format",'EDM SO Annual Return'!T39)="P4"),'EDM SO Annual Return'!T39*100,'EDM SO Annual Return'!T39) -> 99.99
A41: =IF(OR(CELL("format",'EDM SO Annual Return'!T40)="P0",CELL("format",'EDM SO Annual Return'!T40)="P1",CELL("format",'EDM SO Annual Return'!T40)="P2",CELL("format",'EDM SO Annual Return'!T40)="P3",CELL("format",'EDM SO Annual Return'!T40)="P4"),'EDM SO Annual Return'!T40*100,'EDM SO Annual Return'!T40) -> 99.95
A42: =IF(OR(CELL("format",'EDM SO Annual Return'!T41)="P0",CELL("format",'EDM SO Annual Return'!T41)="P1",CELL("format",'EDM SO Annual Return'!T41)="P2",CELL("format",'EDM SO Annual Return'!T41)="P3",CELL("format",'EDM SO Annual Return'!T41)="P4"),'EDM SO Annual Return'!T41*100,'EDM SO Annual Return'!T41) -> 99.98
A43: =IF(OR(CELL("format",'EDM SO Annual Return'!T42)="P0",CELL("format",'EDM SO Annual Return'!T42)="P1",CELL("format",'EDM SO Annual Return'!T42)="P2",CELL("format",'EDM SO Annual Return'!T42)="P3",CELL("format",'EDM SO Annual Return'!T42)="P4"),'EDM SO Annual Return'!T42*100,'EDM SO Annual Return'!T42) -> 80.3
A44: =IF(OR(CELL("format",'EDM SO Annual Return'!T43)="P0",CELL("format",'EDM SO Annual Return'!T43)="P1",CELL("format",'EDM SO Annual Return'!T43)="P2",CELL("format",'EDM SO Annual Return'!T43)="P3",CELL("format",'EDM SO Annual Return'!T43)="P4"),'EDM SO Annual Return'!T43*100,'EDM SO Annual Return'!T43) -> 0
A45: =IF(OR(CELL("format",'EDM SO Annual Return'!T44)="P0",CELL("format",'EDM SO Annual Return'!T44)="P1",CELL("format",'EDM SO Annual Return'!T44)="P2",CELL("format",'EDM SO Annual Return'!T44)="P3",CELL("format",'EDM SO Annual Return'!T44)="P4"),'EDM SO Annual Return'!T44*100,'EDM SO Annual Return'!T44) -> 15.9
A46: =IF(OR(CELL("format",'EDM SO Annual Return'!T45)="P0",CELL("format",'EDM SO Annual Return'!T45)="P1",CELL("format",'EDM SO Annual Return'!T45)="P2",CELL("format",'EDM SO Annual Return'!T45)="P3",CELL("format",'EDM SO Annual Return'!T45)="P4"),'EDM SO Annual Return'!T45*100,'EDM SO Annual Return'!T45) -> 100
A47: =IF(OR(CELL("format",'EDM SO Annual Return'!T46)="P0",CELL("format",'EDM SO Annual Return'!T46)="P1",CELL("format",'EDM SO Annual Return'!T46)="P2",CELL("format",'EDM SO Annual Return'!T46)="P3",CELL("format",'EDM SO Annual Return'!T46)="P4"),'EDM SO Annual Return'!T46*100,'EDM SO Annual Return'!T46) -> 0
A48: =IF(OR(CELL("format",'EDM SO Annual Return'!T47)="P0",CELL("format",'EDM SO Annual Return'!T47)="P1",CELL("format",'EDM SO Annual Return'!T47)="P2",CELL("format",'EDM SO Annual Return'!T47)="P3",CELL("format",'EDM SO Annual Return'!T47)="P4"),'EDM SO Annual Return'!T47*100,'EDM SO Annual Return'!T47) -> 100
A49: =IF(OR(CELL("format",'EDM SO Annual Return'!T48)="P0",CELL("format",'EDM SO Annual Return'!T48)="P1",CELL("format",'EDM SO Annual Return'!T48)="P2",CELL("format",'EDM SO Annual Return'!T48)="P3",CELL("format",'EDM SO Annual Return'!T48)="P4"),'EDM SO Annual Return'!T48*100,'EDM SO Annual Return'!T48) -> 99.66
A50: =IF(OR(CELL("format",'EDM SO Annual Return'!T49)="P0",CELL("format",'EDM SO Annual Return'!T49)="P1",CELL("format",'EDM SO Annual Return'!T49)="P2",CELL("format",'EDM SO Annual Return'!T49)="P3",CELL("format",'EDM SO Annual Return'!T49)="P4"),'EDM SO Annual Return'!T49*100,'EDM SO Annual Return'!T49) -> 99.96
A51: =IF(OR(CELL("format",'EDM SO Annual Return'!T50)="P0",CELL("format",'EDM SO Annual Return'!T50)="P1",CELL("format",'EDM SO Annual Return'!T50)="P2",CELL("format",'EDM SO Annual Return'!T50)="P3",CELL("format",'EDM SO Annual Return'!T50)="P4"),'EDM SO Annual Return'!T50*100,'EDM SO Annual Return'!T50) -> 99.95
A52: =IF(OR(CELL("format",'EDM SO Annual Return'!T51)="P0",CELL("format",'EDM SO Annual Return'!T51)="P1",CELL("format",'EDM SO Annual Return'!T51)="P2",CELL("format",'EDM SO Annual Return'!T51)="P3",CELL("format",'EDM SO Annual Return'!T51)="P4"),'EDM SO Annual Return'!T51*100,'EDM SO Annual Return'!T51) -> 99.95
A53: =IF(OR(CELL("format",'EDM SO Annual Return'!T52)="P0",CELL("format",'EDM SO Annual Return'!T52)="P1",CELL("format",'EDM SO Annual Return'!T52)="P2",CELL("format",'EDM SO Annual Return'!T52)="P3",CELL("format",'EDM SO Annual Return'!T52)="P4"),'EDM SO Annual Return'!T52*100,'EDM SO Annual Return'!T52) -> 0
A54: =IF(OR(CELL("format",'EDM SO Annual Return'!T53)="P0",CELL("format",'EDM SO Annual Return'!T53)="P1",CELL("format",'EDM SO Annual Return'!T53)="P2",CELL("format",'EDM SO Annual Return'!T53)="P3",CELL("format",'EDM SO Annual Return'!T53)="P4"),'EDM SO Annual Return'!T53*100,'EDM SO Annual Return'!T53) -> 99.95
A55: =IF(OR(CELL("format",'EDM SO Annual Return'!T54)="P0",CELL("format",'EDM SO Annual Return'!T54)="P1",CELL("format",'EDM SO Annual Return'!T54)="P2",CELL("format",'EDM SO Annual Return'!T54)="P3",CELL("format",'EDM SO Annual Return'!T54)="P4"),'EDM SO Annual Return'!T54*100,'EDM SO Annual Return'!T54) -> 96.5
A56: =IF(OR(CELL("format",'EDM SO Annual Return'!T55)="P0",CELL("format",'EDM SO Annual Return'!T55)="P1",CELL("format",'EDM SO Annual Return'!T55)="P2",CELL("format",'EDM SO Annual Return'!T55)="P3",CELL("format",'EDM SO Annual Return'!T55)="P4"),'EDM SO Annual Return'!T55*100,'EDM SO Annual Return'!T55) -> 0
A57: =IF(OR(CELL("format",'EDM SO Annual Return'!T56)="P0",CELL("format",'EDM SO Annual Return'!T56)="P1",CELL("format",'EDM SO Annual Return'!T56)="P2",CELL("format",'EDM SO Annual Return'!T56)="P3",CELL("format",'EDM SO Annual Return'!T56)="P4"),'EDM SO Annual Return'!T56*100,'EDM SO Annual Return'!T56) -> 99.18
A58: =IF(OR(CELL("format",'EDM SO Annual Return'!T57)="P0",CELL("format",'EDM SO Annual Return'!T57)="P1",CELL("format",'EDM SO Annual Return'!T57)="P2",CELL("format",'EDM SO Annual Return'!T57)="P3",CELL("format",'EDM SO Annual Return'!T57)="P4"),'EDM SO Annual Return'!T57*100,'EDM SO Annual Return'!T57) -> 99.99
A59: =IF(OR(CELL("format",'EDM SO Annual Return'!T58)="P0",CELL("format",'EDM SO Annual Return'!T58)="P1",CELL("format",'EDM SO Annual Return'!T58)="P2",CELL("format",'EDM SO Annual Return'!T58)="P3",CELL("format",'EDM SO Annual Return'!T58)="P4"),'EDM SO Annual Return'!T58*100,'EDM SO Annual Return'!T58) -> 100
A60: =IF(OR(CELL("format",'EDM SO Annual Return'!T59)="P0",CELL("format",'EDM SO Annual Return'!T59)="P1",CELL("format",'EDM SO Annual Return'!T59)="P2",CELL("format",'EDM SO Annual Return'!T59)="P3",CELL("format",'EDM SO Annual Return'!T59)="P4"),'EDM SO Annual Return'!T59*100,'EDM SO Annual Return'!T59) -> 99.97
A61: =IF(OR(CELL("format",'EDM SO Annual Return'!T60)="P0",CELL("format",'EDM SO Annual Return'!T60)="P1",CELL("format",'EDM SO Annual Return'!T60)="P2",CELL("format",'EDM SO Annual Return'!T60)="P3",CELL("format",'EDM SO Annual Return'!T60)="P4"),'EDM SO Annual Return'!T60*100,'EDM SO Annual Return'!T60) -> 98.2
A62: =IF(OR(CELL("format",'EDM SO Annual Return'!#REF!)="P0",CELL("format",'EDM SO Annual Return'!#REF!)="P1",CELL("format",'EDM SO Annual Return'!#REF!)="P2",CELL("format",'EDM SO Annual Return'!#REF!)="P3",CELL("format",'EDM SO Annual Return'!#REF!)="P4"),'EDM SO Annual Return'!#REF!*100,'EDM SO Annual Return'!#REF!) -> 
A63: =IF(OR(CELL("format",'EDM SO Annual Return'!T61)="P0",CELL("format",'EDM SO Annual Return'!T61)="P1",CELL("format",'EDM SO Annual Return'!T61)="P2",CELL("format",'EDM SO Annual Return'!T61)="P3",CELL("format",'EDM SO Annual Return'!T61)="P4"),'EDM SO Annual Return'!T61*100,'EDM SO Annual Return'!T61) -> 100
A64: =IF(OR(CELL("format",'EDM SO Annual Return'!T62)="P0",CELL("format",'EDM SO Annual Return'!T62)="P1",CELL("format",'EDM SO Annual Return'!T62)="P2",CELL("format",'EDM SO Annual Return'!T62)="P3",CELL("format",'EDM SO Annual Return'!T62)="P4"),'EDM SO Annual Return'!T62*100,'EDM SO Annual Return'!T62) -> 99.75
A65: =IF(OR(CELL("format",'EDM SO Annual Return'!T63)="P0",CELL("format",'EDM SO Annual Return'!T63)="P1",CELL("format",'EDM SO Annual Return'!T63)="P2",CELL("format",'EDM SO Annual Return'!T63)="P3",CELL("format",'EDM SO Annual Return'!T63)="P4"),'EDM SO Annual Return'!T63*100,'EDM SO Annual Return'!T63) -> 54.4
A66: =IF(OR(CELL("format",'EDM SO Annual Return'!T64)="P0",CELL("format",'EDM SO Annual Return'!T64)="P1",CELL("format",'EDM SO Annual Return'!T64)="P2",CELL("format",'EDM SO Annual Return'!T64)="P3",CELL("format",'EDM SO Annual Return'!T64)="P4"),'EDM SO Annual Return'!T64*100,'EDM SO Annual Return'!T64) -> 0
A67: =IF(OR(CELL("format",'EDM SO Annual Return'!T65)="P0",CELL("format",'EDM SO Annual Return'!T65)="P1",CELL("format",'EDM SO Annual Return'!T65)="P2",CELL("format",'EDM SO Annual Return'!T65)="P3",CELL("format",'EDM SO Annual Return'!T65)="P4"),'EDM SO Annual Return'!T65*100,'EDM SO Annual Return'!T65) -> 99.95
A68: =IF(OR(CELL("format",'EDM SO Annual Return'!T66)="P0",CELL("format",'EDM SO Annual Return'!T66)="P1",CELL("format",'EDM SO Annual Return'!T66)="P2",CELL("format",'EDM SO Annual Return'!T66)="P3",CELL("format",'EDM SO Annual Return'!T66)="P4"),'EDM SO Annual Return'!T66*100,'EDM SO Annual Return'!T66) -> 99.99
A69: =IF(OR(CELL("format",'EDM SO Annual Return'!T67)="P0",CELL("format",'EDM SO Annual Return'!T67)="P1",CELL("format",'EDM SO Annual Return'!T67)="P2",CELL("format",'EDM SO Annual Return'!T67)="P3",CELL("format",'EDM SO Annual Return'!T67)="P4"),'EDM SO Annual Return'!T67*100,'EDM SO Annual Return'!T67) -> 100
A70: =IF(OR(CELL("format",'EDM SO Annual Return'!T68)="P0",CELL("format",'EDM SO Annual Return'!T68)="P1",CELL("format",'EDM SO Annual Return'!T68)="P2",CELL("format",'EDM SO Annual Return'!T68)="P3",CELL("format",'EDM SO Annual Return'!T68)="P4"),'EDM SO Annual Return'!T68*100,'EDM SO Annual Return'!T68) -> 99.98
A71: =IF(OR(CELL("format",'EDM SO Annual Return'!T69)="P0",CELL("format",'EDM SO Annual Return'!T69)="P1",CELL("format",'EDM SO Annual Return'!T69)="P2",CELL("format",'EDM SO Annual Return'!T69)="P3",CELL("format",'EDM SO Annual Return'!T69)="P4"),'EDM SO Annual Return'!T69*100,'EDM SO Annual Return'!T69) -> 99.94
A72: =IF(OR(CELL("format",'EDM SO Annual Return'!T70)="P0",CELL("format",'EDM SO Annual Return'!T70)="P1",CELL("format",'EDM SO Annual Return'!T70)="P2",CELL("format",'EDM SO Annual Return'!T70)="P3",CELL("format",'EDM SO Annual Return'!T70)="P4"),'EDM SO Annual Return'!T70*100,'EDM SO Annual Return'!T70) -> 100
A73: =IF(OR(CELL("format",'EDM SO Annual Return'!T71)="P0",CELL("format",'EDM SO Annual Return'!T71)="P1",CELL("format",'EDM SO Annual Return'!T71)="P2",CELL("format",'EDM SO Annual Return'!T71)="P3",CELL("format",'EDM SO Annual Return'!T71)="P4"),'EDM SO Annual Return'!T71*100,'EDM SO Annual Return'!T71) -> 100
A74: =IF(OR(CELL("format",'EDM SO Annual Return'!T72)="P0",CELL("format",'EDM SO Annual Return'!T72)="P1",CELL("format",'EDM SO Annual Return'!T72)="P2",CELL("format",'EDM SO Annual Return'!T72)="P3",CELL("format",'EDM SO Annual Return'!T72)="P4"),'EDM SO Annual Return'!T72*100,'EDM SO Annual Return'!T72) -> 100
A75: =IF(OR(CELL("format",'EDM SO Annual Return'!T73)="P0",CELL("format",'EDM SO Annual Return'!T73)="P1",CELL("format",'EDM SO Annual Return'!T73)="P2",CELL("format",'EDM SO Annual Return'!T73)="P3",CELL("format",'EDM SO Annual Return'!T73)="P4"),'EDM SO Annual Return'!T73*100,'EDM SO Annual Return'!T73) -> 99.96
A76: =IF(OR(CELL("format",'EDM SO Annual Return'!T74)="P0",CELL("format",'EDM SO Annual Return'!T74)="P1",CELL("format",'EDM SO Annual Return'!T74)="P2",CELL("format",'EDM SO Annual Return'!T74)="P3",CELL("format",'EDM SO Annual Return'!T74)="P4"),'EDM SO Annual Return'!T74*100,'EDM SO Annual Return'!T74) -> 99.95
A77: =IF(OR(CELL("format",'EDM SO Annual Return'!T75)="P0",CELL("format",'EDM SO Annual Return'!T75)="P1",CELL("format",'EDM SO Annual Return'!T75)="P2",CELL("format",'EDM SO Annual Return'!T75)="P3",CELL("format",'EDM SO Annual Return'!T75)="P4"),'EDM SO Annual Return'!T75*100,'EDM SO Annual Return'!T75) -> 48.9
A78: =IF(OR(CELL("format",'EDM SO Annual Return'!T76)="P0",CELL("format",'EDM SO Annual Return'!T76)="P1",CELL("format",'EDM SO Annual Return'!T76)="P2",CELL("format",'EDM SO Annual Return'!T76)="P3",CELL("format",'EDM SO Annual Return'!T76)="P4"),'EDM SO Annual Return'!T76*100,'EDM SO Annual Return'!T76) -> 15.6
A79: =IF(OR(CELL("format",'EDM SO Annual Return'!T77)="P0",CELL("format",'EDM SO Annual Return'!T77)="P1",CELL("format",'EDM SO Annual Return'!T77)="P2",CELL("format",'EDM SO Annual Return'!T77)="P3",CELL("format",'EDM SO Annual Return'!T77)="P4"),'EDM SO Annual Return'!T77*100,'EDM SO Annual Return'!T77) -> 99.92
A80: =IF(OR(CELL("format",'EDM SO Annual Return'!T78)="P0",CELL("format",'EDM SO Annual Return'!T78)="P1",CELL("format",'EDM SO Annual Return'!T78)="P2",CELL("format",'EDM SO Annual Return'!T78)="P3",CELL("format",'EDM SO Annual Return'!T78)="P4"),'EDM SO Annual Return'!T78*100,'EDM SO Annual Return'!T78) -> 99.96
A81: =IF(OR(CELL("format",'EDM SO Annual Return'!T79)="P0",CELL("format",'EDM SO Annual Return'!T79)="P1",CELL("format",'EDM SO Annual Return'!T79)="P2",CELL("format",'EDM SO Annual Return'!T79)="P3",CELL("format",'EDM SO Annual Return'!T79)="P4"),'EDM SO Annual Return'!T79*100,'EDM SO Annual Return'!T79) -> 100
A82: =IF(OR(CELL("format",'EDM SO Annual Return'!T80)="P0",CELL("format",'EDM SO Annual Return'!T80)="P1",CELL("format",'EDM SO Annual Return'!T80)="P2",CELL("format",'EDM SO Annual Return'!T80)="P3",CELL("format",'EDM SO Annual Return'!T80)="P4"),'EDM SO Annual Return'!T80*100,'EDM SO Annual Return'!T80) -> 99.89
A83: =IF(OR(CELL("format",'EDM SO Annual Return'!T81)="P0",CELL("format",'EDM SO Annual Return'!T81)="P1",CELL("format",'EDM SO Annual Return'!T81)="P2",CELL("format",'EDM SO Annual Return'!T81)="P3",CELL("format",'EDM SO Annual Return'!T81)="P4"),'EDM SO Annual Return'!T81*100,'EDM SO Annual Return'!T81) -> 100
A84: =IF(OR(CELL("format",'EDM SO Annual Return'!T82)="P0",CELL("format",'EDM SO Annual Return'!T82)="P1",CELL("format",'EDM SO Annual Return'!T82)="P2",CELL("format",'EDM SO Annual Return'!T82)="P3",CELL("format",'EDM SO Annual Return'!T82)="P4"),'EDM SO Annual Return'!T82*100,'EDM SO Annual Return'!T82) -> 99.72
A85: =IF(OR(CELL("format",'EDM SO Annual Return'!T83)="P0",CELL("format",'EDM SO Annual Return'!T83)="P1",CELL("format",'EDM SO Annual Return'!T83)="P2",CELL("format",'EDM SO Annual Return'!T83)="P3",CELL("format",'EDM SO Annual Return'!T83)="P4"),'EDM SO Annual Return'!T83*100,'EDM SO Annual Return'!T83) -> 97.28
A86: =IF(OR(CELL("format",'EDM SO Annual Return'!T84)="P0",CELL("format",'EDM SO Annual Return'!T84)="P1",CELL("format",'EDM SO Annual Return'!T84)="P2",CELL("format",'EDM SO Annual Return'!T84)="P3",CELL("format",'EDM SO Annual Return'!T84)="P4"),'EDM SO Annual Return'!T84*100,'EDM SO Annual Return'!T84) -> 70.98
A87: =IF(OR(CELL("format",'EDM SO Annual Return'!T85)="P0",CELL("format",'EDM SO Annual Return'!T85)="P1",CELL("format",'EDM SO Annual Return'!T85)="P2",CELL("format",'EDM SO Annual Return'!T85)="P3",CELL("format",'EDM SO Annual Return'!T85)="P4"),'EDM SO Annual Return'!T85*100,'EDM SO Annual Return'!T85) -> 99.97
A88: =IF(OR(CELL("format",'EDM SO Annual Return'!T86)="P0",CELL("format",'EDM SO Annual Return'!T86)="P1",CELL("format",'EDM SO Annual Return'!T86)="P2",CELL("format",'EDM SO Annual Return'!T86)="P3",CELL("format",'EDM SO Annual Return'!T86)="P4"),'EDM SO Annual Return'!T86*100,'EDM SO Annual Return'!T86) -> 99.85
A89: =IF(OR(CELL("format",'EDM SO Annual Return'!T87)="P0",CELL("format",'EDM SO Annual Return'!T87)="P1",CELL("format",'EDM SO Annual Return'!T87)="P2",CELL("format",'EDM SO Annual Return'!T87)="P3",CELL("format",'EDM SO Annual Return'!T87)="P4"),'EDM SO Annual Return'!T87*100,'EDM SO Annual Return'!T87) -> 99.96
A90: =IF(OR(CELL("format",'EDM SO Annual Return'!T88)="P0",CELL("format",'EDM SO Annual Return'!T88)="P1",CELL("format",'EDM SO Annual Return'!T88)="P2",CELL("format",'EDM SO Annual Return'!T88)="P3",CELL("format",'EDM SO Annual Return'!T88)="P4"),'EDM SO Annual Return'!T88*100,'EDM SO Annual Return'!T88) -> 99.95
A91: =IF(OR(CELL("format",'EDM SO Annual Return'!T89)="P0",CELL("format",'EDM SO Annual Return'!T89)="P1",CELL("format",'EDM SO Annual Return'!T89)="P2",CELL("format",'EDM SO Annual Return'!T89)="P3",CELL("format",'EDM SO Annual Return'!T89)="P4"),'EDM SO Annual Return'!T89*100,'EDM SO Annual Return'!T89) -> 94.32
A92: =IF(OR(CELL("format",'EDM SO Annual Return'!T90)="P0",CELL("format",'EDM SO Annual Return'!T90)="P1",CELL("format",'EDM SO Annual Return'!T90)="P2",CELL("format",'EDM SO Annual Return'!T90)="P3",CELL("format",'EDM SO Annual Return'!T90)="P4"),'EDM SO Annual Return'!T90*100,'EDM SO Annual Return'!T90) -> 99.87
A93: =IF(OR(CELL("format",'EDM SO Annual Return'!T91)="P0",CELL("format",'EDM SO Annual Return'!T91)="P1",CELL("format",'EDM SO Annual Return'!T91)="P2",CELL("format",'EDM SO Annual Return'!T91)="P3",CELL("format",'EDM SO Annual Return'!T91)="P4"),'EDM SO Annual Return'!T91*100,'EDM SO Annual Return'!T91) -> 99.95
A94: =IF(OR(CELL("format",'EDM SO Annual Return'!T92)="P0",CELL("format",'EDM SO Annual Return'!T92)="P1",CELL("format",'EDM SO Annual Return'!T92)="P2",CELL("format",'EDM SO Annual Return'!T92)="P3",CELL("format",'EDM SO Annual Return'!T92)="P4"),'EDM SO Annual Return'!T92*100,'EDM SO Annual Return'!T92) -> 99.61
A95: =IF(OR(CELL("format",'EDM SO Annual Return'!T93)="P0",CELL("format",'EDM SO Annual Return'!T93)="P1",CELL("format",'EDM SO Annual Return'!T93)="P2",CELL("format",'EDM SO Annual Return'!T93)="P3",CELL("format",'EDM SO Annual Return'!T93)="P4"),'EDM SO Annual Return'!T93*100,'EDM SO Annual Return'!T93) -> 98.05
A96: =IF(OR(CELL("format",'EDM SO Annual Return'!T94)="P0",CELL("format",'EDM SO Annual Return'!T94)="P1",CELL("format",'EDM SO Annual Return'!T94)="P2",CELL("format",'EDM SO Annual Return'!T94)="P3",CELL("format",'EDM SO Annual Return'!T94)="P4"),'EDM SO Annual Return'!T94*100,'EDM SO Annual Return'!T94) -> 99.81
A97: =IF(OR(CELL("format",'EDM SO Annual Return'!T95)="P0",CELL("format",'EDM SO Annual Return'!T95)="P1",CELL("format",'EDM SO Annual Return'!T95)="P2",CELL("format",'EDM SO Annual Return'!T95)="P3",CELL("format",'EDM SO Annual Return'!T95)="P4"),'EDM SO Annual Return'!T95*100,'EDM SO Annual Return'!T95) -> 99.98
A98: =IF(OR(CELL("format",'EDM SO Annual Return'!T96)="P0",CELL("format",'EDM SO Annual Return'!T96)="P1",CELL("format",'EDM SO Annual Return'!T96)="P2",CELL("format",'EDM SO Annual Return'!T96)="P3",CELL("format",'EDM SO Annual Return'!T96)="P4"),'EDM SO Annual Return'!T96*100,'EDM SO Annual Return'!T96) -> 99.77
A99: =IF(OR(CELL("format",'EDM SO Annual Return'!T97)="P0",CELL("format",'EDM SO Annual Return'!T97)="P1",CELL("format",'EDM SO Annual Return'!T97)="P2",CELL("format",'EDM SO Annual Return'!T97)="P3",CELL("format",'EDM SO Annual Return'!T97)="P4"),'EDM SO Annual Return'!T97*100,'EDM SO Annual Return'!T97) -> 99.94
A100: =IF(OR(CELL("format",'EDM SO Annual Return'!T98)="P0",CELL("format",'EDM SO Annual Return'!T98)="P1",CELL("format",'EDM SO Annual Return'!T98)="P2",CELL("format",'EDM SO Annual Return'!T98)="P3",CELL("format",'EDM SO Annual Return'!T98)="P4"),'EDM SO Annual Return'!T98*100,'EDM SO Annual Return'!T98) -> 99.14
A101: =IF(OR(CELL("format",'EDM SO Annual Return'!T99)="P0",CELL("format",'EDM SO Annual Return'!T99)="P1",CELL("format",'EDM SO Annual Return'!T99)="P2",CELL("format",'EDM SO Annual Return'!T99)="P3",CELL("format",'EDM SO Annual Return'!T99)="P4"),'EDM SO Annual Return'!T99*100,'EDM SO Annual Return'!T99) -> 99.98
A102: =IF(OR(CELL("format",'EDM SO Annual Return'!T100)="P0",CELL("format",'EDM SO Annual Return'!T100)="P1",CELL("format",'EDM SO Annual Return'!T100)="P2",CELL("format",'EDM SO Annual Return'!T100)="P3",CELL("format",'EDM SO Annual Return'!T100)="P4"),'EDM SO Annual Return'!T100*100,'EDM SO Annual Return'!T100) -> 99.78
A103: =IF(OR(CELL("format",'EDM SO Annual Return'!T101)="P0",CELL("format",'EDM SO Annual Return'!T101)="P1",CELL("format",'EDM SO Annual Return'!T101)="P2",CELL("format",'EDM SO Annual Return'!T101)="P3",CELL("format",'EDM SO Annual Return'!T101)="P4"),'EDM SO Annual Return'!T101*100,'EDM SO Annual Return'!T101) -> 80.42
A104: =IF(OR(CELL("format",'EDM SO Annual Return'!T102)="P0",CELL("format",'EDM SO Annual Return'!T102)="P1",CELL("format",'EDM SO Annual Return'!T102)="P2",CELL("format",'EDM SO Annual Return'!T102)="P3",CELL("format",'EDM SO Annual Return'!T102)="P4"),'EDM SO Annual Return'!T102*100,'EDM SO Annual Return'!T102) -> 79.49
A105: =IF(OR(CELL("format",'EDM SO Annual Return'!T103)="P0",CELL("format",'EDM SO Annual Return'!T103)="P1",CELL("format",'EDM SO Annual Return'!T103)="P2",CELL("format",'EDM SO Annual Return'!T103)="P3",CELL("format",'EDM SO Annual Return'!T103)="P4"),'EDM SO Annual Return'!T103*100,'EDM SO Annual Return'!T103) -> 98.72
A106: =IF(OR(CELL("format",'EDM SO Annual Return'!T104)="P0",CELL("format",'EDM SO Annual Return'!T104)="P1",CELL("format",'EDM SO Annual Return'!T104)="P2",CELL("format",'EDM SO Annual Return'!T104)="P3",CELL("format",'EDM SO Annual Return'!T104)="P4"),'EDM SO Annual Return'!T104*100,'EDM SO Annual Return'!T104) -> 99.93
A107: =IF(OR(CELL("format",'EDM SO Annual Return'!T105)="P0",CELL("format",'EDM SO Annual Return'!T105)="P1",CELL("format",'EDM SO Annual Return'!T105)="P2",CELL("format",'EDM SO Annual Return'!T105)="P3",CELL("format",'EDM SO Annual Return'!T105)="P4"),'EDM SO Annual Return'!T105*100,'EDM SO Annual Return'!T105) -> 98.51
A108: =IF(OR(CELL("format",'EDM SO Annual Return'!T106)="P0",CELL("format",'EDM SO Annual Return'!T106)="P1",CELL("format",'EDM SO Annual Return'!T106)="P2",CELL("format",'EDM SO Annual Return'!T106)="P3",CELL("format",'EDM SO Annual Return'!T106)="P4"),'EDM SO Annual Return'!T106*100,'EDM SO Annual Return'!T106) -> 80.49
A109: =IF(OR(CELL("format",'EDM SO Annual Return'!T107)="P0",CELL("format",'EDM SO Annual Return'!T107)="P1",CELL("format",'EDM SO Annual Return'!T107)="P2",CELL("format",'EDM SO Annual Return'!T107)="P3",CELL("format",'EDM SO Annual Return'!T107)="P4"),'EDM SO Annual Return'!T107*100,'EDM SO Annual Return'!T107) -> 99.28
A110: =IF(OR(CELL("format",'EDM SO Annual Return'!T108)="P0",CELL("format",'EDM SO Annual Return'!T108)="P1",CELL("format",'EDM SO Annual Return'!T108)="P2",CELL("format",'EDM SO Annual Return'!T108)="P3",CELL("format",'EDM SO Annual Return'!T108)="P4"),'EDM SO Annual Return'!T108*100,'EDM SO Annual Return'!T108) -> 100
A111: =IF(OR(CELL("format",'EDM SO Annual Return'!T109)="P0",CELL("format",'EDM SO Annual Return'!T109)="P1",CELL("format",'EDM SO Annual Return'!T109)="P2",CELL("format",'EDM SO Annual Return'!T109)="P3",CELL("format",'EDM SO Annual Return'!T109)="P4"),'EDM SO Annual Return'!T109*100,'EDM SO Annual Return'!T109) -> 96.24
A112: =IF(OR(CELL("format",'EDM SO Annual Return'!T110)="P0",CELL("format",'EDM SO Annual Return'!T110)="P1",CELL("format",'EDM SO Annual Return'!T110)="P2",CELL("format",'EDM SO Annual Return'!T110)="P3",CELL("format",'EDM SO Annual Return'!T110)="P4"),'EDM SO Annual Return'!T110*100,'EDM SO Annual Return'!T110) -> 99.73
A113: =IF(OR(CELL("format",'EDM SO Annual Return'!T111)="P0",CELL("format",'EDM SO Annual Return'!T111)="P1",CELL("format",'EDM SO Annual Return'!T111)="P2",CELL("format",'EDM SO Annual Return'!T111)="P3",CELL("format",'EDM SO Annual Return'!T111)="P4"),'EDM SO Annual Return'!T111*100,'EDM SO Annual Return'!T111) -> 98.6
A114: =IF(OR(CELL("format",'EDM SO Annual Return'!T112)="P0",CELL("format",'EDM SO Annual Return'!T112)="P1",CELL("format",'EDM SO Annual Return'!T112)="P2",CELL("format",'EDM SO Annual Return'!T112)="P3",CELL("format",'EDM SO Annual Return'!T112)="P4"),'EDM SO Annual Return'!T112*100,'EDM SO Annual Return'!T112) -> 99.89
A115: =IF(OR(CELL("format",'EDM SO Annual Return'!T113)="P0",CELL("format",'EDM SO Annual Return'!T113)="P1",CELL("format",'EDM SO Annual Return'!T113)="P2",CELL("format",'EDM SO Annual Return'!T113)="P3",CELL("format",'EDM SO Annual Return'!T113)="P4"),'EDM SO Annual Return'!T113*100,'EDM SO Annual Return'!T113) -> 99.94
A116: =IF(OR(CELL("format",'EDM SO Annual Return'!T114)="P0",CELL("format",'EDM SO Annual Return'!T114)="P1",CELL("format",'EDM SO Annual Return'!T114)="P2",CELL("format",'EDM SO Annual Return'!T114)="P3",CELL("format",'EDM SO Annual Return'!T114)="P4"),'EDM SO Annual Return'!T114*100,'EDM SO Annual Return'!T114) -> 99.99
A117: =IF(OR(CELL("format",'EDM SO Annual Return'!T115)="P0",CELL("format",'EDM SO Annual Return'!T115)="P1",CELL("format",'EDM SO Annual Return'!T115)="P2",CELL("format",'EDM SO Annual Return'!T115)="P3",CELL("format",'EDM SO Annual Return'!T115)="P4"),'EDM SO Annual Return'!T115*100,'EDM SO Annual Return'!T115) -> 99.89
A118: =IF(OR(CELL("format",'EDM SO Annual Return'!T116)="P0",CELL("format",'EDM SO Annual Return'!T116)="P1",CELL("format",'EDM SO Annual Return'!T116)="P2",CELL("format",'EDM SO Annual Return'!T116)="P3",CELL("format",'EDM SO Annual Return'!T116)="P4"),'EDM SO Annual Return'!T116*100,'EDM SO Annual Return'!T116) -> 100
A119: =IF(OR(CELL("format",'EDM SO Annual Return'!T117)="P0",CELL("format",'EDM SO Annual Return'!T117)="P1",CELL("format",'EDM SO Annual Return'!T117)="P2",CELL("format",'EDM SO Annual Return'!T117)="P3",CELL("format",'EDM SO Annual Return'!T117)="P4"),'EDM SO Annual Return'!T117*100,'EDM SO Annual Return'!T117) -> 99.91
A120: =IF(OR(CELL("format",'EDM SO Annual Return'!T118)="P0",CELL("format",'EDM SO Annual Return'!T118)="P1",CELL("format",'EDM SO Annual Return'!T118)="P2",CELL("format",'EDM SO Annual Return'!T118)="P3",CELL("format",'EDM SO Annual Return'!T118)="P4"),'EDM SO Annual Return'!T118*100,'EDM SO Annual Return'!T118) -> 99.95
A121: =IF(OR(CELL("format",'EDM SO Annual Return'!T119)="P0",CELL("format",'EDM SO Annual Return'!T119)="P1",CELL("format",'EDM SO Annual Return'!T119)="P2",CELL("format",'EDM SO Annual Return'!T119)="P3",CELL("format",'EDM SO Annual Return'!T119)="P4"),'EDM SO Annual Return'!T119*100,'EDM SO Annual Return'!T119) -> 99.97
A122: =IF(OR(CELL("format",'EDM SO Annual Return'!T120)="P0",CELL("format",'EDM SO Annual Return'!T120)="P1",CELL("format",'EDM SO Annual Return'!T120)="P2",CELL("format",'EDM SO Annual Return'!T120)="P3",CELL("format",'EDM SO Annual Return'!T120)="P4"),'EDM SO Annual Return'!T120*100,'EDM SO Annual Return'!T120) -> 99.97
A123: =IF(OR(CELL("format",'EDM SO Annual Return'!T121)="P0",CELL("format",'EDM SO Annual Return'!T121)="P1",CELL("format",'EDM SO Annual Return'!T121)="P2",CELL("format",'EDM SO Annual Return'!T121)="P3",CELL("format",'EDM SO Annual Return'!T121)="P4"),'EDM SO Annual Return'!T121*100,'EDM SO Annual Return'!T121) -> 100
A124: =IF(OR(CELL("format",'EDM SO Annual Return'!T122)="P0",CELL("format",'EDM SO Annual Return'!T122)="P1",CELL("format",'EDM SO Annual Return'!T122)="P2",CELL("format",'EDM SO Annual Return'!T122)="P3",CELL("format",'EDM SO Annual Return'!T122)="P4"),'EDM SO Annual Return'!T122*100,'EDM SO Annual Return'!T122) -> 16.49
A125: =IF(OR(CELL("format",'EDM SO Annual Return'!T123)="P0",CELL("format",'EDM SO Annual Return'!T123)="P1",CELL("format",'EDM SO Annual Return'!T123)="P2",CELL("format",'EDM SO Annual Return'!T123)="P3",CELL("format",'EDM SO Annual Return'!T123)="P4"),'EDM SO Annual Return'!T123*100,'EDM SO Annual Return'!T123) -> 99.96
A126: =IF(OR(CELL("format",'EDM SO Annual Return'!T124)="P0",CELL("format",'EDM SO Annual Return'!T124)="P1",CELL("format",'EDM SO Annual Return'!T124)="P2",CELL("format",'EDM SO Annual Return'!T124)="P3",CELL("format",'EDM SO Annual Return'!T124)="P4"),'EDM SO Annual Return'!T124*100,'EDM SO Annual Return'!T124) -> 99.23
A127: =IF(OR(CELL("format",'EDM SO Annual Return'!T125)="P0",CELL("format",'EDM SO Annual Return'!T125)="P1",CELL("format",'EDM SO Annual Return'!T125)="P2",CELL("format",'EDM SO Annual Return'!T125)="P3",CELL("format",'EDM SO Annual Return'!T125)="P4"),'EDM SO Annual Return'!T125*100,'EDM SO Annual Return'!T125) -> 0
A128: =IF(OR(CELL("format",'EDM SO Annual Return'!T126)="P0",CELL("format",'EDM SO Annual Return'!T126)="P1",CELL("format",'EDM SO Annual Return'!T126)="P2",CELL("format",'EDM SO Annual Return'!T126)="P3",CELL("format",'EDM SO Annual Return'!T126)="P4"),'EDM SO Annual Return'!T126*100,'EDM SO Annual Return'!T126) -> 99.61
A129: =IF(OR(CELL("format",'EDM SO Annual Return'!T127)="P0",CELL("format",'EDM SO Annual Return'!T127)="P1",CELL("format",'EDM SO Annual Return'!T127)="P2",CELL("format",'EDM SO Annual Return'!T127)="P3",CELL("format",'EDM SO Annual Return'!T127)="P4"),'EDM SO Annual Return'!T127*100,'EDM SO Annual Return'!T127) -> 99.97070312
A130: =IF(OR(CELL("format",'EDM SO Annual Return'!T128)="P0",CELL("format",'EDM SO Annual Return'!T128)="P1",CELL("format",'EDM SO Annual Return'!T128)="P2",CELL("format",'EDM SO Annual Return'!T128)="P3",CELL("format",'EDM SO Annual Return'!T128)="P4"),'EDM SO Annual Return'!T128*100,'EDM SO Annual Return'!T128) -> 99.81
A131: =IF(OR(CELL("format",'EDM SO Annual Return'!T129)="P0",CELL("format",'EDM SO Annual Return'!T129)="P1",CELL("format",'EDM SO Annual Return'!T129)="P2",CELL("format",'EDM SO Annual Return'!T129)="P3",CELL("format",'EDM SO Annual Return'!T129)="P4"),'EDM SO Annual Return'!T129*100,'EDM SO Annual Return'!T129) -> 99.93
A132: =IF(OR(CELL("format",'EDM SO Annual Return'!T132)="P0",CELL("format",'EDM SO Annual Return'!T132)="P1",CELL("format",'EDM SO Annual Return'!T132)="P2",CELL("format",'EDM SO Annual Return'!T132)="P3",CELL("format",'EDM SO Annual Return'!T132)="P4"),'EDM SO Annual Return'!T132*100,'EDM SO Annual Return'!T132) -> 0
A133: =IF(OR(CELL("format",'EDM SO Annual Return'!T133)="P0",CELL("format",'EDM SO Annual Return'!T133)="P1",CELL("format",'EDM SO Annual Return'!T133)="P2",CELL("format",'EDM SO Annual Return'!T133)="P3",CELL("format",'EDM SO Annual Return'!T133)="P4"),'EDM SO Annual Return'!T133*100,'EDM SO Annual Return'!T133) -> 0
A134: =IF(OR(CELL("format",'EDM SO Annual Return'!T134)="P0",CELL("format",'EDM SO Annual Return'!T134)="P1",CELL("format",'EDM SO Annual Return'!T134)="P2",CELL("format",'EDM SO Annual Return'!T134)="P3",CELL("format",'EDM SO Annual Return'!T134)="P4"),'EDM SO Annual Return'!T134*100,'EDM SO Annual Return'!T134) -> 0
A135: =IF(OR(CELL("format",'EDM SO Annual Return'!T135)="P0",CELL("format",'EDM SO Annual Return'!T135)="P1",CELL("format",'EDM SO Annual Return'!T135)="P2",CELL("format",'EDM SO Annual Return'!T135)="P3",CELL("format",'EDM SO Annual Return'!T135)="P4"),'EDM SO Annual Return'!T135*100,'EDM SO Annual Return'!T135) -> 0
A136: =IF(OR(CELL("format",'EDM SO Annual Return'!T136)="P0",CELL("format",'EDM SO Annual Return'!T136)="P1",CELL("format",'EDM SO Annual Return'!T136)="P2",CELL("format",'EDM SO Annual Return'!T136)="P3",CELL("format",'EDM SO Annual Return'!T136)="P4"),'EDM SO Annual Return'!T136*100,'EDM SO Annual Return'!T136) -> 0
A137: =IF(OR(CELL("format",'EDM SO Annual Return'!T137)="P0",CELL("format",'EDM SO Annual Return'!T137)="P1",CELL("format",'EDM SO Annual Return'!T137)="P2",CELL("format",'EDM SO Annual Return'!T137)="P3",CELL("format",'EDM SO Annual Return'!T137)="P4"),'EDM SO Annual Return'!T137*100,'EDM SO Annual Return'!T137) -> 0
A138: =IF(OR(CELL("format",'EDM SO Annual Return'!T138)="P0",CELL("format",'EDM SO Annual Return'!T138)="P1",CELL("format",'EDM SO Annual Return'!T138)="P2",CELL("format",'EDM SO Annual Return'!T138)="P3",CELL("format",'EDM SO Annual Return'!T138)="P4"),'EDM SO Annual Return'!T138*100,'EDM SO Annual Return'!T138) -> 0
A139: =IF(OR(CELL("format",'EDM SO Annual Return'!T139)="P0",CELL("format",'EDM SO Annual Return'!T139)="P1",CELL("format",'EDM SO Annual Return'!T139)="P2",CELL("format",'EDM SO Annual Return'!T139)="P3",CELL("format",'EDM SO Annual Return'!T139)="P4"),'EDM SO Annual Return'!T139*100,'EDM SO Annual Return'!T139) -> 0
A140: =IF(OR(CELL("format",'EDM SO Annual Return'!T140)="P0",CELL("format",'EDM SO Annual Return'!T140)="P1",CELL("format",'EDM SO Annual Return'!T140)="P2",CELL("format",'EDM SO Annual Return'!T140)="P3",CELL("format",'EDM SO Annual Return'!T140)="P4"),'EDM SO Annual Return'!T140*100,'EDM SO Annual Return'!T140) -> 0
A141: =IF(OR(CELL("format",'EDM SO Annual Return'!T141)="P0",CELL("format",'EDM SO Annual Return'!T141)="P1",CELL("format",'EDM SO Annual Return'!T141)="P2",CELL("format",'EDM SO Annual Return'!T141)="P3",CELL("format",'EDM SO Annual Return'!T141)="P4"),'EDM SO Annual Return'!T141*100,'EDM SO Annual Return'!T141) -> 0
A142: =IF(OR(CELL("format",'EDM SO Annual Return'!T142)="P0",CELL("format",'EDM SO Annual Return'!T142)="P1",CELL("format",'EDM SO Annual Return'!T142)="P2",CELL("format",'EDM SO Annual Return'!T142)="P3",CELL("format",'EDM SO Annual Return'!T142)="P4"),'EDM SO Annual Return'!T142*100,'EDM SO Annual Return'!T142) -> 0
A143: =IF(OR(CELL("format",'EDM SO Annual Return'!T143)="P0",CELL("format",'EDM SO Annual Return'!T143)="P1",CELL("format",'EDM SO Annual Return'!T143)="P2",CELL("format",'EDM SO Annual Return'!T143)="P3",CELL("format",'EDM SO Annual Return'!T143)="P4"),'EDM SO Annual Return'!T143*100,'EDM SO Annual Return'!T143) -> 0
A144: =IF(OR(CELL("format",'EDM SO Annual Return'!T144)="P0",CELL("format",'EDM SO Annual Return'!T144)="P1",CELL("format",'EDM SO Annual Return'!T144)="P2",CELL("format",'EDM SO Annual Return'!T144)="P3",CELL("format",'EDM SO Annual Return'!T144)="P4"),'EDM SO Annual Return'!T144*100,'EDM SO Annual Return'!T144) -> 0
A145: =IF(OR(CELL("format",'EDM SO Annual Return'!T145)="P0",CELL("format",'EDM SO Annual Return'!T145)="P1",CELL("format",'EDM SO Annual Return'!T145)="P2",CELL("format",'EDM SO Annual Return'!T145)="P3",CELL("format",'EDM SO Annual Return'!T145)="P4"),'EDM SO Annual Return'!T145*100,'EDM SO Annual Return'!T145) -> 0
A146: =IF(OR(CELL("format",'EDM SO Annual Return'!T146)="P0",CELL("format",'EDM SO Annual Return'!T146)="P1",CELL("format",'EDM SO Annual Return'!T146)="P2",CELL("format",'EDM SO Annual Return'!T146)="P3",CELL("format",'EDM SO Annual Return'!T146)="P4"),'EDM SO Annual Return'!T146*100,'EDM SO Annual Return'!T146) -> 0
A147: =IF(OR(CELL("format",'EDM SO Annual Return'!T147)="P0",CELL("format",'EDM SO Annual Return'!T147)="P1",CELL("format",'EDM SO Annual Return'!T147)="P2",CELL("format",'EDM SO Annual Return'!T147)="P3",CELL("format",'EDM SO Annual Return'!T147)="P4"),'EDM SO Annual Return'!T147*100,'EDM SO Annual Return'!T147) -> 0
A148: =IF(OR(CELL("format",'EDM SO Annual Return'!T148)="P0",CELL("format",'EDM SO Annual Return'!T148)="P1",CELL("format",'EDM SO Annual Return'!T148)="P2",CELL("format",'EDM SO Annual Return'!T148)="P3",CELL("format",'EDM SO Annual Return'!T148)="P4"),'EDM SO Annual Return'!T148*100,'EDM SO Annual Return'!T148) -> 0
A149: =IF(OR(CELL("format",'EDM SO Annual Return'!T149)="P0",CELL("format",'EDM SO Annual Return'!T149)="P1",CELL("format",'EDM SO Annual Return'!T149)="P2",CELL("format",'EDM SO Annual Return'!T149)="P3",CELL("format",'EDM SO Annual Return'!T149)="P4"),'EDM SO Annual Return'!T149*100,'EDM SO Annual Return'!T149) -> 0
A150: =IF(OR(CELL("format",'EDM SO Annual Return'!T150)="P0",CELL("format",'EDM SO Annual Return'!T150)="P1",CELL("format",'EDM SO Annual Return'!T150)="P2",CELL("format",'EDM SO Annual Return'!T150)="P3",CELL("format",'EDM SO Annual Return'!T150)="P4"),'EDM SO Annual Return'!T150*100,'EDM SO Annual Return'!T150) -> 0
A151: =IF(OR(CELL("format",'EDM SO Annual Return'!T151)="P0",CELL("format",'EDM SO Annual Return'!T151)="P1",CELL("format",'EDM SO Annual Return'!T151)="P2",CELL("format",'EDM SO Annual Return'!T151)="P3",CELL("format",'EDM SO Annual Return'!T151)="P4"),'EDM SO Annual Return'!T151*100,'EDM SO Annual Return'!T151) -> 0
A152: =IF(OR(CELL("format",'EDM SO Annual Return'!T152)="P0",CELL("format",'EDM SO Annual Return'!T152)="P1",CELL("format",'EDM SO Annual Return'!T152)="P2",CELL("format",'EDM SO Annual Return'!T152)="P3",CELL("format",'EDM SO Annual Return'!T152)="P4"),'EDM SO Annual Return'!T152*100,'EDM SO Annual Return'!T152) -> 0
A153: =IF(OR(CELL("format",'EDM SO Annual Return'!T153)="P0",CELL("format",'EDM SO Annual Return'!T153)="P1",CELL("format",'EDM SO Annual Return'!T153)="P2",CELL("format",'EDM SO Annual Return'!T153)="P3",CELL("format",'EDM SO Annual Return'!T153)="P4"),'EDM SO Annual Return'!T153*100,'EDM SO Annual Return'!T153) -> 0
A154: =IF(OR(CELL("format",'EDM SO Annual Return'!T154)="P0",CELL("format",'EDM SO Annual Return'!T154)="P1",CELL("format",'EDM SO Annual Return'!T154)="P2",CELL("format",'EDM SO Annual Return'!T154)="P3",CELL("format",'EDM SO Annual Return'!T154)="P4"),'EDM SO Annual Return'!T154*100,'EDM SO Annual Return'!T154) -> 0
A155: =IF(OR(CELL("format",'EDM SO Annual Return'!T155)="P0",CELL("format",'EDM SO Annual Return'!T155)="P1",CELL("format",'EDM SO Annual Return'!T155)="P2",CELL("format",'EDM SO Annual Return'!T155)="P3",CELL("format",'EDM SO Annual Return'!T155)="P4"),'EDM SO Annual Return'!T155*100,'EDM SO Annual Return'!T155) -> 0
A156: =IF(OR(CELL("format",'EDM SO Annual Return'!T156)="P0",CELL("format",'EDM SO Annual Return'!T156)="P1",CELL("format",'EDM SO Annual Return'!T156)="P2",CELL("format",'EDM SO Annual Return'!T156)="P3",CELL("format",'EDM SO Annual Return'!T156)="P4"),'EDM SO Annual Return'!T156*100,'EDM SO Annual Return'!T156) -> 0
A157: =IF(OR(CELL("format",'EDM SO Annual Return'!T157)="P0",CELL("format",'EDM SO Annual Return'!T157)="P1",CELL("format",'EDM SO Annual Return'!T157)="P2",CELL("format",'EDM SO Annual Return'!T157)="P3",CELL("format",'EDM SO Annual Return'!T157)="P4"),'EDM SO Annual Return'!T157*100,'EDM SO Annual Return'!T157) -> 0
A158: =IF(OR(CELL("format",'EDM SO Annual Return'!T158)="P0",CELL("format",'EDM SO Annual Return'!T158)="P1",CELL("format",'EDM SO Annual Return'!T158)="P2",CELL("format",'EDM SO Annual Return'!T158)="P3",CELL("format",'EDM SO Annual Return'!T158)="P4"),'EDM SO Annual Return'!T158*100,'EDM SO Annual Return'!T158) -> 0
A159: =IF(OR(CELL("format",'EDM SO Annual Return'!T159)="P0",CELL("format",'EDM SO Annual Return'!T159)="P1",CELL("format",'EDM SO Annual Return'!T159)="P2",CELL("format",'EDM SO Annual Return'!T159)="P3",CELL("format",'EDM SO Annual Return'!T159)="P4"),'EDM SO Annual Return'!T159*100,'EDM SO Annual Return'!T159) -> 0
A160: =IF(OR(CELL("format",'EDM SO Annual Return'!T160)="P0",CELL("format",'EDM SO Annual Return'!T160)="P1",CELL("format",'EDM SO Annual Return'!T160)="P2",CELL("format",'EDM SO Annual Return'!T160)="P3",CELL("format",'EDM SO Annual Return'!T160)="P4"),'EDM SO Annual Return'!T160*100,'EDM SO Annual Return'!T160) -> 0
A161: =IF(OR(CELL("format",'EDM SO Annual Return'!T161)="P0",CELL("format",'EDM SO Annual Return'!T161)="P1",CELL("format",'EDM SO Annual Return'!T161)="P2",CELL("format",'EDM SO Annual Return'!T161)="P3",CELL("format",'EDM SO Annual Return'!T161)="P4"),'EDM SO Annual Return'!T161*100,'EDM SO Annual Return'!T161) -> 0
A162: =IF(OR(CELL("format",'EDM SO Annual Return'!T162)="P0",CELL("format",'EDM SO Annual Return'!T162)="P1",CELL("format",'EDM SO Annual Return'!T162)="P2",CELL("format",'EDM SO Annual Return'!T162)="P3",CELL("format",'EDM SO Annual Return'!T162)="P4"),'EDM SO Annual Return'!T162*100,'EDM SO Annual Return'!T162) -> 0
A163: =IF(OR(CELL("format",'EDM SO Annual Return'!T163)="P0",CELL("format",'EDM SO Annual Return'!T163)="P1",CELL("format",'EDM SO Annual Return'!T163)="P2",CELL("format",'EDM SO Annual Return'!T163)="P3",CELL("format",'EDM SO Annual Return'!T163)="P4"),'EDM SO Annual Return'!T163*100,'EDM SO Annual Return'!T163) -> 0
A164: =IF(OR(CELL("format",'EDM SO Annual Return'!T164)="P0",CELL("format",'EDM SO Annual Return'!T164)="P1",CELL("format",'EDM SO Annual Return'!T164)="P2",CELL("format",'EDM SO Annual Return'!T164)="P3",CELL("format",'EDM SO Annual Return'!T164)="P4"),'EDM SO Annual Return'!T164*100,'EDM SO Annual Return'!T164) -> 0
A165: =IF(OR(CELL("format",'EDM SO Annual Return'!T165)="P0",CELL("format",'EDM SO Annual Return'!T165)="P1",CELL("format",'EDM SO Annual Return'!T165)="P2",CELL("format",'EDM SO Annual Return'!T165)="P3",CELL("format",'EDM SO Annual Return'!T165)="P4"),'EDM SO Annual Return'!T165*100,'EDM SO Annual Return'!T165) -> 0
A166: =IF(OR(CELL("format",'EDM SO Annual Return'!T166)="P0",CELL("format",'EDM SO Annual Return'!T166)="P1",CELL("format",'EDM SO Annual Return'!T166)="P2",CELL("format",'EDM SO Annual Return'!T166)="P3",CELL("format",'EDM SO Annual Return'!T166)="P4"),'EDM SO Annual Return'!T166*100,'EDM SO Annual Return'!T166) -> 0
A167: =IF(OR(CELL("format",'EDM SO Annual Return'!T167)="P0",CELL("format",'EDM SO Annual Return'!T167)="P1",CELL("format",'EDM SO Annual Return'!T167)="P2",CELL("format",'EDM SO Annual Return'!T167)="P3",CELL("format",'EDM SO Annual Return'!T167)="P4"),'EDM SO Annual Return'!T167*100,'EDM SO Annual Return'!T167) -> 0
A168: =IF(OR(CELL("format",'EDM SO Annual Return'!T168)="P0",CELL("format",'EDM SO Annual Return'!T168)="P1",CELL("format",'EDM SO Annual Return'!T168)="P2",CELL("format",'EDM SO Annual Return'!T168)="P3",CELL("format",'EDM SO Annual Return'!T168)="P4"),'EDM SO Annual Return'!T168*100,'EDM SO Annual Return'!T168) -> 0
A169: =IF(OR(CELL("format",'EDM SO Annual Return'!T169)="P0",CELL("format",'EDM SO Annual Return'!T169)="P1",CELL("format",'EDM SO Annual Return'!T169)="P2",CELL("format",'EDM SO Annual Return'!T169)="P3",CELL("format",'EDM SO Annual Return'!T169)="P4"),'EDM SO Annual Return'!T169*100,'EDM SO Annual Return'!T169) -> 0
A170: =IF(OR(CELL("format",'EDM SO Annual Return'!T170)="P0",CELL("format",'EDM SO Annual Return'!T170)="P1",CELL("format",'EDM SO Annual Return'!T170)="P2",CELL("format",'EDM SO Annual Return'!T170)="P3",CELL("format",'EDM SO Annual Return'!T170)="P4"),'EDM SO Annual Return'!T170*100,'EDM SO Annual Return'!T170) -> 0
A171: =IF(OR(CELL("format",'EDM SO Annual Return'!T171)="P0",CELL("format",'EDM SO Annual Return'!T171)="P1",CELL("format",'EDM SO Annual Return'!T171)="P2",CELL("format",'EDM SO Annual Return'!T171)="P3",CELL("format",'EDM SO Annual Return'!T171)="P4"),'EDM SO Annual Return'!T171*100,'EDM SO Annual Return'!T171) -> 0
A172: =IF(OR(CELL("format",'EDM SO Annual Return'!T172)="P0",CELL("format",'EDM SO Annual Return'!T172)="P1",CELL("format",'EDM SO Annual Return'!T172)="P2",CELL("format",'EDM SO Annual Return'!T172)="P3",CELL("format",'EDM SO Annual Return'!T172)="P4"),'EDM SO Annual Return'!T172*100,'EDM SO Annual Return'!T172) -> 0
A173: =IF(OR(CELL("format",'EDM SO Annual Return'!T173)="P0",CELL("format",'EDM SO Annual Return'!T173)="P1",CELL("format",'EDM SO Annual Return'!T173)="P2",CELL("format",'EDM SO Annual Return'!T173)="P3",CELL("format",'EDM SO Annual Return'!T173)="P4"),'EDM SO Annual Return'!T173*100,'EDM SO Annual Return'!T173) -> 0
A174: =IF(OR(CELL("format",'EDM SO Annual Return'!T174)="P0",CELL("format",'EDM SO Annual Return'!T174)="P1",CELL("format",'EDM SO Annual Return'!T174)="P2",CELL("format",'EDM SO Annual Return'!T174)="P3",CELL("format",'EDM SO Annual Return'!T174)="P4"),'EDM SO Annual Return'!T174*100,'EDM SO Annual Return'!T174) -> 0
A175: =IF(OR(CELL("format",'EDM SO Annual Return'!T175)="P0",CELL("format",'EDM SO Annual Return'!T175)="P1",CELL("format",'EDM SO Annual Return'!T175)="P2",CELL("format",'EDM SO Annual Return'!T175)="P3",CELL("format",'EDM SO Annual Return'!T175)="P4"),'EDM SO Annual Return'!T175*100,'EDM SO Annual Return'!T175) -> 0
A176: =IF(OR(CELL("format",'EDM SO Annual Return'!T176)="P0",CELL("format",'EDM SO Annual Return'!T176)="P1",CELL("format",'EDM SO Annual Return'!T176)="P2",CELL("format",'EDM SO Annual Return'!T176)="P3",CELL("format",'EDM SO Annual Return'!T176)="P4"),'EDM SO Annual Return'!T176*100,'EDM SO Annual Return'!T176) -> 0
A177: =IF(OR(CELL("format",'EDM SO Annual Return'!T177)="P0",CELL("format",'EDM SO Annual Return'!T177)="P1",CELL("format",'EDM SO Annual Return'!T177)="P2",CELL("format",'EDM SO Annual Return'!T177)="P3",CELL("format",'EDM SO Annual Return'!T177)="P4"),'EDM SO Annual Return'!T177*100,'EDM SO Annual Return'!T177) -> 0
A178: =IF(OR(CELL("format",'EDM SO Annual Return'!T178)="P0",CELL("format",'EDM SO Annual Return'!T178)="P1",CELL("format",'EDM SO Annual Return'!T178)="P2",CELL("format",'EDM SO Annual Return'!T178)="P3",CELL("format",'EDM SO Annual Return'!T178)="P4"),'EDM SO Annual Return'!T178*100,'EDM SO Annual Return'!T178) -> 0
A179: =IF(OR(CELL("format",'EDM SO Annual Return'!T179)="P0",CELL("format",'EDM SO Annual Return'!T179)="P1",CELL("format",'EDM SO Annual Return'!T179)="P2",CELL("format",'EDM SO Annual Return'!T179)="P3",CELL("format",'EDM SO Annual Return'!T179)="P4"),'EDM SO Annual Return'!T179*100,'EDM SO Annual Return'!T179) -> 0
A180: =IF(OR(CELL("format",'EDM SO Annual Return'!T180)="P0",CELL("format",'EDM SO Annual Return'!T180)="P1",CELL("format",'EDM SO Annual Return'!T180)="P2",CELL("format",'EDM SO Annual Return'!T180)="P3",CELL("format",'EDM SO Annual Return'!T180)="P4"),'EDM SO Annual Return'!T180*100,'EDM SO Annual Return'!T180) -> 0
A181: =IF(OR(CELL("format",'EDM SO Annual Return'!T181)="P0",CELL("format",'EDM SO Annual Return'!T181)="P1",CELL("format",'EDM SO Annual Return'!T181)="P2",CELL("format",'EDM SO Annual Return'!T181)="P3",CELL("format",'EDM SO Annual Return'!T181)="P4"),'EDM SO Annual Return'!T181*100,'EDM SO Annual Return'!T181) -> 0
A182: =IF(OR(CELL("format",'EDM SO Annual Return'!T182)="P0",CELL("format",'EDM SO Annual Return'!T182)="P1",CELL("format",'EDM SO Annual Return'!T182)="P2",CELL("format",'EDM SO Annual Return'!T182)="P3",CELL("format",'EDM SO Annual Return'!T182)="P4"),'EDM SO Annual Return'!T182*100,'EDM SO Annual Return'!T182) -> 0
A183: =IF(OR(CELL("format",'EDM SO Annual Return'!T183)="P0",CELL("format",'EDM SO Annual Return'!T183)="P1",CELL("format",'EDM SO Annual Return'!T183)="P2",CELL("format",'EDM SO Annual Return'!T183)="P3",CELL("format",'EDM SO Annual Return'!T183)="P4"),'EDM SO Annual Return'!T183*100,'EDM SO Annual Return'!T183) -> 0
A184: =IF(OR(CELL("format",'EDM SO Annual Return'!T184)="P0",CELL("format",'EDM SO Annual Return'!T184)="P1",CELL("format",'EDM SO Annual Return'!T184)="P2",CELL("format",'EDM SO Annual Return'!T184)="P3",CELL("format",'EDM SO Annual Return'!T184)="P4"),'EDM SO Annual Return'!T184*100,'EDM SO Annual Return'!T184) -> 0
A185: =IF(OR(CELL("format",'EDM SO Annual Return'!T185)="P0",CELL("format",'EDM SO Annual Return'!T185)="P1",CELL("format",'EDM SO Annual Return'!T185)="P2",CELL("format",'EDM SO Annual Return'!T185)="P3",CELL("format",'EDM SO Annual Return'!T185)="P4"),'EDM SO Annual Return'!T185*100,'EDM SO Annual Return'!T185) -> 0
A186: =IF(OR(CELL("format",'EDM SO Annual Return'!T186)="P0",CELL("format",'EDM SO Annual Return'!T186)="P1",CELL("format",'EDM SO Annual Return'!T186)="P2",CELL("format",'EDM SO Annual Return'!T186)="P3",CELL("format",'EDM SO Annual Return'!T186)="P4"),'EDM SO Annual Return'!T186*100,'EDM SO Annual Return'!T186) -> 0
A187: =IF(OR(CELL("format",'EDM SO Annual Return'!T187)="P0",CELL("format",'EDM SO Annual Return'!T187)="P1",CELL("format",'EDM SO Annual Return'!T187)="P2",CELL("format",'EDM SO Annual Return'!T187)="P3",CELL("format",'EDM SO Annual Return'!T187)="P4"),'EDM SO Annual Return'!T187*100,'EDM SO Annual Return'!T187) -> 0
A188: =IF(OR(CELL("format",'EDM SO Annual Return'!T188)="P0",CELL("format",'EDM SO Annual Return'!T188)="P1",CELL("format",'EDM SO Annual Return'!T188)="P2",CELL("format",'EDM SO Annual Return'!T188)="P3",CELL("format",'EDM SO Annual Return'!T188)="P4"),'EDM SO Annual Return'!T188*100,'EDM SO Annual Return'!T188) -> 0
A189: =IF(OR(CELL("format",'EDM SO Annual Return'!T189)="P0",CELL("format",'EDM SO Annual Return'!T189)="P1",CELL("format",'EDM SO Annual Return'!T189)="P2",CELL("format",'EDM SO Annual Return'!T189)="P3",CELL("format",'EDM SO Annual Return'!T189)="P4"),'EDM SO Annual Return'!T189*100,'EDM SO Annual Return'!T189) -> 0
A190: =IF(OR(CELL("format",'EDM SO Annual Return'!T190)="P0",CELL("format",'EDM SO Annual Return'!T190)="P1",CELL("format",'EDM SO Annual Return'!T190)="P2",CELL("format",'EDM SO Annual Return'!T190)="P3",CELL("format",'EDM SO Annual Return'!T190)="P4"),'EDM SO Annual Return'!T190*100,'EDM SO Annual Return'!T190) -> 0
A191: =IF(OR(CELL("format",'EDM SO Annual Return'!T191)="P0",CELL("format",'EDM SO Annual Return'!T191)="P1",CELL("format",'EDM SO Annual Return'!T191)="P2",CELL("format",'EDM SO Annual Return'!T191)="P3",CELL("format",'EDM SO Annual Return'!T191)="P4"),'EDM SO Annual Return'!T191*100,'EDM SO Annual Return'!T191) -> 0
A192: =IF(OR(CELL("format",'EDM SO Annual Return'!T192)="P0",CELL("format",'EDM SO Annual Return'!T192)="P1",CELL("format",'EDM SO Annual Return'!T192)="P2",CELL("format",'EDM SO Annual Return'!T192)="P3",CELL("format",'EDM SO Annual Return'!T192)="P4"),'EDM SO Annual Return'!T192*100,'EDM SO Annual Return'!T192) -> 0
A193: =IF(OR(CELL("format",'EDM SO Annual Return'!T193)="P0",CELL("format",'EDM SO Annual Return'!T193)="P1",CELL("format",'EDM SO Annual Return'!T193)="P2",CELL("format",'EDM SO Annual Return'!T193)="P3",CELL("format",'EDM SO Annual Return'!T193)="P4"),'EDM SO Annual Return'!T193*100,'EDM SO Annual Return'!T193) -> 0
A194: =IF(OR(CELL("format",'EDM SO Annual Return'!T194)="P0",CELL("format",'EDM SO Annual Return'!T194)="P1",CELL("format",'EDM SO Annual Return'!T194)="P2",CELL("format",'EDM SO Annual Return'!T194)="P3",CELL("format",'EDM SO Annual Return'!T194)="P4"),'EDM SO Annual Return'!T194*100,'EDM SO Annual Return'!T194) -> 0
A195: =IF(OR(CELL("format",'EDM SO Annual Return'!T195)="P0",CELL("format",'EDM SO Annual Return'!T195)="P1",CELL("format",'EDM SO Annual Return'!T195)="P2",CELL("format",'EDM SO Annual Return'!T195)="P3",CELL("format",'EDM SO Annual Return'!T195)="P4"),'EDM SO Annual Return'!T195*100,'EDM SO Annual Return'!T195) -> 0
A196: =IF(OR(CELL("format",'EDM SO Annual Return'!T196)="P0",CELL("format",'EDM SO Annual Return'!T196)="P1",CELL("format",'EDM SO Annual Return'!T196)="P2",CELL("format",'EDM SO Annual Return'!T196)="P3",CELL("format",'EDM SO Annual Return'!T196)="P4"),'EDM SO Annual Return'!T196*100,'EDM SO Annual Return'!T196) -> 0
A197: =IF(OR(CELL("format",'EDM SO Annual Return'!T197)="P0",CELL("format",'EDM SO Annual Return'!T197)="P1",CELL("format",'EDM SO Annual Return'!T197)="P2",CELL("format",'EDM SO Annual Return'!T197)="P3",CELL("format",'EDM SO Annual Return'!T197)="P4"),'EDM SO Annual Return'!T197*100,'EDM SO Annual Return'!T197) -> 0
A198: =IF(OR(CELL("format",'EDM SO Annual Return'!T198)="P0",CELL("format",'EDM SO Annual Return'!T198)="P1",CELL("format",'EDM SO Annual Return'!T198)="P2",CELL("format",'EDM SO Annual Return'!T198)="P3",CELL("format",'EDM SO Annual Return'!T198)="P4"),'EDM SO Annual Return'!T198*100,'EDM SO Annual Return'!T198) -> 0
A199: =IF(OR(CELL("format",'EDM SO Annual Return'!T199)="P0",CELL("format",'EDM SO Annual Return'!T199)="P1",CELL("format",'EDM SO Annual Return'!T199)="P2",CELL("format",'EDM SO Annual Return'!T199)="P3",CELL("format",'EDM SO Annual Return'!T199)="P4"),'EDM SO Annual Return'!T199*100,'EDM SO Annual Return'!T199) -> 0
A200: =IF(OR(CELL("format",'EDM SO Annual Return'!T200)="P0",CELL("format",'EDM SO Annual Return'!T200)="P1",CELL("format",'EDM SO Annual Return'!T200)="P2",CELL("format",'EDM SO Annual Return'!T200)="P3",CELL("format",'EDM SO Annual Return'!T200)="P4"),'EDM SO Annual Return'!T200*100,'EDM SO Annual Return'!T200) -> 0
A201: =IF(OR(CELL("format",'EDM SO Annual Return'!T201)="P0",CELL("format",'EDM SO Annual Return'!T201)="P1",CELL("format",'EDM SO Annual Return'!T201)="P2",CELL("format",'EDM SO Annual Return'!T201)="P3",CELL("format",'EDM SO Annual Return'!T201)="P4"),'EDM SO Annual Return'!T201*100,'EDM SO Annual Return'!T201) -> 0
... 3799 more rows

Sheet Lookup Drop Downs (hidden)
A1: Column A | B1: Column G | C1: Column N | D1: Column O | H1: Column S | J1: Column U | K1: Column V | L1: Column W | M1: Column X | N1: Column Y
A2: Water Company Name | B2: Storm discharge asset type | C2: Treatment Method (over & above storm tank settlement / screening) | D2: Initial EDM Commission Date | E2: LookUpNoYears2 | F2: LookUpCommissionDate | G2: LookUpNoYears | H2: No. years EDM data (years) | I2: YearLengthLookup | J2: EDM Operation - Reporting percentage - Primary Reason <90% | K2: EDM Operation - Action taken / planned - Status & Timeframe | L2: High Spill Frequency - Operational Review - Primary Reason (Asset Maintenance) | M2: High Spill frequency - Action taken / planned - Status & Timeframe | N2: High Spill Frequency - Environmental Enhancement - Planning Position (Hydraulic Capacity)
A3: Thames Water | B3: SO on sewer network | C3: Not Applicable | D3: Commissioned pre-2016 - full year data expected | E3: 10 (installed 2013) | F3: Commissioned pre-2016 - full year data expected | G3: 9 (installed 2013) | H3: <1 yr (installed 2023) | I3: 1 | J3: Access - Unable to retrieve data from non-telemetry data logger (NB: not to be used for delayed access to fix existing fault) | K3: Scheduled | L3: Performance - Partial / no capacity due to blockage or restriction (e.g. roots / grid) - maintenance issue | M3: Scheduled | N3: SOAF N/A - Proposed SFTP (overflow previously improved)
A4: Anglian Water | B4: Storm discharge at pumping station | C4: UV (Ultraviolet) | D4: Commissioned in 2016 - full year data expected | E4: 9 (installed 2014) | F4: Commissioned pre-2016 - full year data expected | G4: 8 (installed 2014) | H4: 1 (installed 2022) | I4: 1 | J4: Capital / maintenance works affect EDM operation | K4: Resolved - Jan | L4: Performance - Sewer collapse (partial / full) - infrastructure issue | M4: Resolved - Jan | N4: Stage 1a: Confirmed "exceptional weather" issue
A5: Yorkshire Water | B5: Inlet SO at WwTW | C5: Chemical disinfection | D5: Commissioned in 2017 - full year data expected | E5: 8 (installed 2015) | F5: Commissioned in 2016 - full year data expected | G5: 7 (installed 2015) | H5: 2 (installed 2021) | I5: 2 | J5: Comms failure / issue | K5: Resolved - Feb | L5: Performance - GW inundation | M5: Resolved - Feb | N5: Stage 1b: Confirmed "asset maintenance" issue
A6: Dwr Cymru Welsh Water | B6: Storm tank at WwTW | C6: Membrane filtration | D6: Commissioned in 2018 - full year data expected | E6: 7 (installed 2016) | F6: Commissioned in 2017 - full year data expected | G6: 6 (installed 2016) | H6: 3 (installed 2020) | I6: 3 | J6: Installation set-up/design issue | K6: Resolved - Mar | L6: Performance - Infiltration | M6: Resolved - Mar | N6: Stage 1c: Confirmed "hydraulic issue"
A7: Northumbrian Water | B7: Other storm discharge asset type | C7: Reed bed | D7: Commissioned in 2019 - full year data expected | E7: 6 (installed 2017) | F7: Commissioned in 2018 - full year data expected | G7: 5 (installed 2017) | H7: 4 (installed 2019) | I7: 4 | J7: Power failure / issue | K7: Resolved - Apr | L7: Performance - Asset power failure | M7: Resolved - Apr | N7: U_INV driver - Stage 2 or 3: Environmental / UWWTR assessments or improvement options appraisal
A8: Severn Trent Water | B8: SO on sewer network - with treatment | C8: Facultative ponds | D8: Commissioned in 2020 - full year data expected | E8: 5 (installed 2018) | F8: Commissioned in 2019 - full year data expected | G8: 4 (installed 2018) | H8: 5 (installed 2018) | I8: 5 | J8: Sensor failure / issue | K8: Resolved - May | L8: Performance - Pump failure / issue | M8: Resolved - May | N8: U_INV driver - Stage 4: Cost beneficial outcome not yet determined
A9: Southern Water | B9: Storm discharge at pumping station - with treatment | D9: Commissioned in 2021 - full year data expected | E9: 4 (installed 2019) | F9: Commissioned in 2020 - full year data expected | G9: 3 (installed 2019) | H9: 6 (installed 2017) | I9: 6 | J9: Telemetry or data archiving failure / issue | K9: Resolved - Jun | L9: Performance - Other maintenance / capital works (e.g. jetting) | M9: Resolved - Jun | N9: U_INV driver - Stage 4: No cost beneficial solution
A10: South West Water | B10: Inlet SO at WwTW - with treatment | D10: Commissioned in 2022 - full year data expected | E10: 3 (installed 2020) | F10: Commissioned in 2021 - full year data expected | G10: 2 (installed 2020) | H10: 7 (installed 2016) | I10: 7 | J10: No longer operational as an overflow - permit revoked or to be revoked | K10: Resolved - Jul | L10: Performance - Asset configuration (e.g. PS/rising main/storm tanks) | M10: Resolved - Jul | N10: U_IMP4 driver - Stage 4: Spill reduction scheme - On current WINEP/AMP or Green Recovery
A11: United Utilities | B11: Storm tank at WwTW - with treatment | D11: Jan 2023 | E11: 2 (installed 2021) | F11: Commissioned in 2022 - full year data expected | G11: 1 (installed 2021) | H11: 8 (installed 2015) | I11: 8 | K11: Resolved - Aug | L11: Data collection - EDM non-representative location | M11: Resolved - Aug | N11: U_IMP4 driver - Stage 4: Potential spill reduction scheme - Not yet on current WINEP/AMP or Green Recovery
A12: Wessex Water | B12: Other storm discharge asset type - with treatment | D12: Feb 2023 | E12: 1 (installed 2022) | F12: Jan 2023 | G12: <1 yr (installed 2022) | H12: 9 (installed 2014) | I12: 9 | K12: Resolved - Sep | L12: Data collection - Confirmed exceptional weather – Remaining spills not above SOAF threshold | M12: Resolved - Sep | N12: Other investigation - WINEP/Green Recovery
D13: Mar 2023 | E13: <1 yr (installed 2023) | F13: Feb 2023 | G13: <1 yr (installed 2022) | H13: 10 (installed 2013) | I13: 10 | K13: Resolved - Oct | L13: Data collection - Tidal / river inundation | M13: Resolved - Oct | N13: Other investigation - non-WINEP/Green Recovery
D14: Apr 2023 | E14: <1 yr (installed 2023) | F14: Mar 2023 | G14: <1 yr (installed 2022) | H14: 10+ (installed pre-2013) | K14: Resolved - Nov | L14: Not asset maintenance - Hydraulic capacity | M14: Resolved - Nov | N14: Other improvements - WINEP/Green Recovery
D15: May 2023 | E15: <1 yr (installed 2023) | F15: Apr 2023 | G15: <1 yr (installed 2022) | K15: Resolved - Dec | L15: N/A - Ongoing investigation | M15: Resolved - Dec | N15: Other improvements - non-WINEP/Green Recovery
D16: Jun 2023 | E16: <1 yr (installed 2023) | F16: May 2023 | G16: <1 yr (installed 2022) | K16: Resolved - January after reporting year | M16: Resolved - January after reporting year | N16: N/A - Operational solution applied
D17: Jul 2023 | E17: <1 yr (installed 2023) | F17: Jun 2023 | G17: <1 yr (installed 2022) | K17: Resolved - February after reporting year | M17: Resolved - February after reporting year
D18: Aug 2023 | E18: <1 yr (installed 2023) | F18: Jul 2023 | G18: <1 yr (installed 2022) | K18: N/A - Ongoing investigation | M18: N/A - Ongoing investigation
D19: Sep 2023 | E19: <1 yr (installed 2023) | F19: Aug 2023 | G19: <1 yr (installed 2022) | K19: Overflow no longer spilling to environment - from Jan | M19: N/A - Hydraulic capacity
D20: Oct 2023 | E20: <1 yr (installed 2023) | F20: Sep 2023 | G20: <1 yr (installed 2022) | K20: Overflow no longer spilling to environment - from Feb
D21: Nov 2023 | E21: <1 yr (installed 2023) | F21: Oct 2023 | G21: <1 yr (installed 2022) | K21: Overflow no longer spilling to environment - from Mar
D22: Dec 2023 | E22: <1 yr (installed 2023) | F22: Nov 2023 | G22: <1 yr (installed 2022) | K22: Overflow no longer spilling to environment - from Apr
D23: Installed but not yet commissioned | E23: <1 yr (installed 2023) | F23: Dec 2023 | G23: <1 yr (installed 2022) | K23: Overflow no longer spilling to environment - from May
D24: EDM not technically feasible at this overflow | E24: <1 yr (installed 2023) | K24: Overflow no longer spilling to environment - from Jun
G25: Column not used. | K25: Overflow no longer spilling to environment - from Jul
E26: Column not used. | F26: Column not used. | K26: Overflow no longer spilling to environment - from Aug
K27: Overflow no longer spilling to environment - from Sep
K28: Overflow no longer spilling to environment - from Oct
K29: Overflow no longer spilling to environment - from Nov
K30: Overflow no longer spilling to environment - from Dec
